{"text_format":"3","workbook":"xlsx","n_sheets":4,"sheets":["VA-BUDJETIN YHTEENVETO","KUUKAUSIKULUJEN YHTEENVETO","ERITELLYT KULUT","LAHJOITUKSET & SPONSOROINNIT"],"not_rendered":{"defined_names":15},"read":"whole","date_system":"1900"}

{"sheet":"VA-BUDJETIN YHTEENVETO","index":0,"n_rows":17,"n_cols":7,"rows_kept":17,"merged":[[1,1,1,4]]}
[null,"KUUKAUSIKULUJEN YHTEENVETO"]
[null,"TODELLISET vastaan KULUVAN VUODEN BUDJETTI",{"$nulls":3},"vuosi",{"$f":"YEAR(TODAY())","v":2019}]
[]
[null,"Kirjanpidon koodi","Tilin otsikko","Todelliset","Budjetti","Jäljellä €","Jäljellä %"]
[null,1000,"Mainonta",{"$f":"SUMIF(Kuukausikulujen_yhteenveto[Kirjanpidon koodi],Vuoden_alusta_taulukko[[#This Row],[Kirjanpidon koodi]],Kuukausikulujen_yhteenveto[Summa])","v":{"v":0,"d":"0.00 €"}},{"v":100000,"d":"100,000.00 €"},{"$f":"IF(Vuoden_alusta_taulukko[[#This Row],[Budjetti]]=\"\",\"\",Vuoden_alusta_taulukko[[#This Row],[Budjetti]]-Vuoden_alusta_taulukko[[#This Row],[Todelliset]])","v":{"v":100000,"d":"100,000.00 €"}},{"$f":"IFERROR(Vuoden_alusta_taulukko[[#This Row],[Jäljellä €]]/Vuoden_alusta_taulukko[[#This Row],[Budjetti]],\"\")","v":{"v":1,"d":"100.00%"}}]
[null,2000,"Toimistolaitteet",{"$f":"SUMIF(Kuukausikulujen_yhteenveto[Kirjanpidon koodi],Vuoden_alusta_taulukko[[#This Row],[Kirjanpidon koodi]],Kuukausikulujen_yhteenveto[Summa])","v":{"v":0,"d":"0.00 €"}},{"v":100000,"d":"100,000.00 €"},{"$f":"IF(Vuoden_alusta_taulukko[[#This Row],[Budjetti]]=\"\",\"\",Vuoden_alusta_taulukko[[#This Row],[Budjetti]]-Vuoden_alusta_taulukko[[#This Row],[Todelliset]])","v":{"v":100000,"d":"100,000.00 €"}},{"$f":"IFERROR(Vuoden_alusta_taulukko[[#This Row],[Jäljellä €]]/Vuoden_alusta_taulukko[[#This Row],[Budjetti]],\"\")","v":{"v":1,"d":"100.00%"}}]
[null,3000,"Tulostimet",{"$f":"SUMIF(Kuukausikulujen_yhteenveto[Kirjanpidon koodi],Vuoden_alusta_taulukko[[#This Row],[Kirjanpidon koodi]],Kuukausikulujen_yhteenveto[Summa])","v":{"v":0,"d":"0.00 €"}},{"v":100000,"d":"100,000.00 €"},{"$f":"IF(Vuoden_alusta_taulukko[[#This Row],[Budjetti]]=\"\",\"\",Vuoden_alusta_taulukko[[#This Row],[Budjetti]]-Vuoden_alusta_taulukko[[#This Row],[Todelliset]])","v":{"v":100000,"d":"100,000.00 €"}},{"$f":"IFERROR(Vuoden_alusta_taulukko[[#This Row],[Jäljellä €]]/Vuoden_alusta_taulukko[[#This Row],[Budjetti]],\"\")","v":{"v":1,"d":"100.00%"}}]
[null,4000,"Palvelimen kustannukset",{"$f":"SUMIF(Kuukausikulujen_yhteenveto[Kirjanpidon koodi],Vuoden_alusta_taulukko[[#This Row],[Kirjanpidon koodi]],Kuukausikulujen_yhteenveto[Summa])","v":{"v":0,"d":"0.00 €"}},{"v":100000,"d":"100,000.00 €"},{"$f":"IF(Vuoden_alusta_taulukko[[#This Row],[Budjetti]]=\"\",\"\",Vuoden_alusta_taulukko[[#This Row],[Budjetti]]-Vuoden_alusta_taulukko[[#This Row],[Todelliset]])","v":{"v":100000,"d":"100,000.00 €"}},{"$f":"IFERROR(Vuoden_alusta_taulukko[[#This Row],[Jäljellä €]]/Vuoden_alusta_taulukko[[#This Row],[Budjetti]],\"\")","v":{"v":1,"d":"100.00%"}}]
[null,5000,"Tarvikkeet",{"$f":"SUMIF(Kuukausikulujen_yhteenveto[Kirjanpidon koodi],Vuoden_alusta_taulukko[[#This Row],[Kirjanpidon koodi]],Kuukausikulujen_yhteenveto[Summa])","v":{"v":0,"d":"0.00 €"}},{"v":50000,"d":"50,000.00 €"},{"$f":"IF(Vuoden_alusta_taulukko[[#This Row],[Budjetti]]=\"\",\"\",Vuoden_alusta_taulukko[[#This Row],[Budjetti]]-Vuoden_alusta_taulukko[[#This Row],[Todelliset]])","v":{"v":50000,"d":"50,000.00 €"}},{"$f":"IFERROR(Vuoden_alusta_taulukko[[#This Row],[Jäljellä €]]/Vuoden_alusta_taulukko[[#This Row],[Budjetti]],\"\")","v":{"v":1,"d":"100.00%"}}]
[null,6000,"Asiakkaan kulut",{"$f":"SUMIF(Kuukausikulujen_yhteenveto[Kirjanpidon koodi],Vuoden_alusta_taulukko[[#This Row],[Kirjanpidon koodi]],Kuukausikulujen_yhteenveto[Summa])","v":{"v":0,"d":"0.00 €"}},{"v":25000,"d":"25,000.00 €"},{"$f":"IF(Vuoden_alusta_taulukko[[#This Row],[Budjetti]]=\"\",\"\",Vuoden_alusta_taulukko[[#This Row],[Budjetti]]-Vuoden_alusta_taulukko[[#This Row],[Todelliset]])","v":{"v":25000,"d":"25,000.00 €"}},{"$f":"IFERROR(Vuoden_alusta_taulukko[[#This Row],[Jäljellä €]]/Vuoden_alusta_taulukko[[#This Row],[Budjetti]],\"\")","v":{"v":1,"d":"100.00%"}}]
[null,7000,"Tietokoneet",{"$f":"SUMIF(Kuukausikulujen_yhteenveto[Kirjanpidon koodi],Vuoden_alusta_taulukko[[#This Row],[Kirjanpidon koodi]],Kuukausikulujen_yhteenveto[Summa])","v":{"v":0,"d":"0.00 €"}},{"v":75000,"d":"75,000.00 €"},{"$f":"IF(Vuoden_alusta_taulukko[[#This Row],[Budjetti]]=\"\",\"\",Vuoden_alusta_taulukko[[#This Row],[Budjetti]]-Vuoden_alusta_taulukko[[#This Row],[Todelliset]])","v":{"v":75000,"d":"75,000.00 €"}},{"$f":"IFERROR(Vuoden_alusta_taulukko[[#This Row],[Jäljellä €]]/Vuoden_alusta_taulukko[[#This Row],[Budjetti]],\"\")","v":{"v":1,"d":"100.00%"}}]
[null,8000,"Terveydenhoito",{"$f":"SUMIF(Kuukausikulujen_yhteenveto[Kirjanpidon koodi],Vuoden_alusta_taulukko[[#This Row],[Kirjanpidon koodi]],Kuukausikulujen_yhteenveto[Summa])","v":{"v":0,"d":"0.00 €"}},{"v":65000,"d":"65,000.00 €"},{"$f":"IF(Vuoden_alusta_taulukko[[#This Row],[Budjetti]]=\"\",\"\",Vuoden_alusta_taulukko[[#This Row],[Budjetti]]-Vuoden_alusta_taulukko[[#This Row],[Todelliset]])","v":{"v":65000,"d":"65,000.00 €"}},{"$f":"IFERROR(Vuoden_alusta_taulukko[[#This Row],[Jäljellä €]]/Vuoden_alusta_taulukko[[#This Row],[Budjetti]],\"\")","v":{"v":1,"d":"100.00%"}}]
[null,9000,"Rakennuskustannukset",{"$f":"SUMIF(Kuukausikulujen_yhteenveto[Kirjanpidon koodi],Vuoden_alusta_taulukko[[#This Row],[Kirjanpidon koodi]],Kuukausikulujen_yhteenveto[Summa])","v":{"v":0,"d":"0.00 €"}},{"v":125000,"d":"125,000.00 €"},{"$f":"IF(Vuoden_alusta_taulukko[[#This Row],[Budjetti]]=\"\",\"\",Vuoden_alusta_taulukko[[#This Row],[Budjetti]]-Vuoden_alusta_taulukko[[#This Row],[Todelliset]])","v":{"v":125000,"d":"125,000.00 €"}},{"$f":"IFERROR(Vuoden_alusta_taulukko[[#This Row],[Jäljellä €]]/Vuoden_alusta_taulukko[[#This Row],[Budjetti]],\"\")","v":{"v":1,"d":"100.00%"}}]
[null,10000,"Markkinointi",{"$f":"SUMIF(Kuukausikulujen_yhteenveto[Kirjanpidon koodi],Vuoden_alusta_taulukko[[#This Row],[Kirjanpidon koodi]],Kuukausikulujen_yhteenveto[Summa])","v":{"v":0,"d":"0.00 €"}},{"v":100000,"d":"100,000.00 €"},{"$f":"IF(Vuoden_alusta_taulukko[[#This Row],[Budjetti]]=\"\",\"\",Vuoden_alusta_taulukko[[#This Row],[Budjetti]]-Vuoden_alusta_taulukko[[#This Row],[Todelliset]])","v":{"v":100000,"d":"100,000.00 €"}},{"$f":"IFERROR(Vuoden_alusta_taulukko[[#This Row],[Jäljellä €]]/Vuoden_alusta_taulukko[[#This Row],[Budjetti]],\"\")","v":{"v":1,"d":"100.00%"}}]
[null,11000,"Lahjoitukset",{"$f":"SUMIF(Kuukausikulujen_yhteenveto[Kirjanpidon koodi],Vuoden_alusta_taulukko[[#This Row],[Kirjanpidon koodi]],Kuukausikulujen_yhteenveto[Summa])","v":{"v":0,"d":"0.00 €"}},{"v":250000,"d":"250,000.00 €"},{"$f":"IF(Vuoden_alusta_taulukko[[#This Row],[Budjetti]]=\"\",\"\",Vuoden_alusta_taulukko[[#This Row],[Budjetti]]-Vuoden_alusta_taulukko[[#This Row],[Todelliset]])","v":{"v":250000,"d":"250,000.00 €"}},{"$f":"IFERROR(Vuoden_alusta_taulukko[[#This Row],[Jäljellä €]]/Vuoden_alusta_taulukko[[#This Row],[Budjetti]],\"\")","v":{"v":1,"d":"100.00%"}}]
[null,12000,"Sponsoroinnit",{"$f":"SUMIF(Kuukausikulujen_yhteenveto[Kirjanpidon koodi],Vuoden_alusta_taulukko[[#This Row],[Kirjanpidon koodi]],Kuukausikulujen_yhteenveto[Summa])","v":{"v":0,"d":"0.00 €"}},{"v":50000,"d":"50,000.00 €"},{"$f":"IF(Vuoden_alusta_taulukko[[#This Row],[Budjetti]]=\"\",\"\",Vuoden_alusta_taulukko[[#This Row],[Budjetti]]-Vuoden_alusta_taulukko[[#This Row],[Todelliset]])","v":{"v":50000,"d":"50,000.00 €"}},{"$f":"IFERROR(Vuoden_alusta_taulukko[[#This Row],[Jäljellä €]]/Vuoden_alusta_taulukko[[#This Row],[Budjetti]],\"\")","v":{"v":1,"d":"100.00%"}}]
[null,"Summa",null,{"$f":"SUBTOTAL(109,Vuoden_alusta_taulukko[Todelliset])","v":{"v":0,"d":"0.00 €"}},{"$f":"SUBTOTAL(109,Vuoden_alusta_taulukko[Budjetti])","v":{"v":1140000,"d":"1,140,000.00 €"}},{"$f":"SUBTOTAL(109,Vuoden_alusta_taulukko[Jäljellä €])","v":{"v":1140000,"d":"1,140,000.00 €"}},{"$f":"Vuoden_alusta_taulukko[[#Totals],[Jäljellä €]]/Vuoden_alusta_taulukko[[#Totals],[Budjetti]]","v":{"v":1,"d":"100.00%"}}]

{"sheet":"KUUKAUSIKULUJEN YHTEENVETO","index":1,"n_rows":18,"n_cols":17,"rows_kept":18,"merged":[[1,1,1,16]]}
[null,"VA-BUDJETIN YHTEENVETO","ERITELLYT KULUT"]
[null,"KUUKAUSIKULUJEN YHTEENVETO"]
[null,"Tässä solussa on osittaja tilien otsikkotietojen suodattamiseen.",null,{"$f":"DATEVALUE(\"1-TAMMI\"&_VUOSI)","v":{"v":43466,"d":"4346600.00 %"}},{"$f":"DATEVALUE(\"1-HELMI\"&_xlfn.SINGLE(_VUOSI))","v":{"v":43497,"d":"4349700.00 %"}},{"$f":"DATEVALUE(\"1-MAALIS\"&_VUOSI)","v":{"v":43525,"d":"4352500.00 %"}},{"$f":"DATEVALUE(\"1-HUHTI\"&_VUOSI)","v":{"v":43556,"d":"4355600.00 %"}},{"$f":"DATEVALUE(\"1-TOUKO\"&_VUOSI)","v":{"v":43586,"d":"4358600.00 %"}},{"$f":"DATEVALUE(\"1-KESÄ\"&_VUOSI)","v":{"v":43617,"d":"4361700.00 %"}},{"$f":"DATEVALUE(\"1-HEINÄ\"&_VUOSI)","v":{"v":43647,"d":"4364700.00 %"}},{"$f":"DATEVALUE(\"1-ELO\"&_VUOSI)","v":{"v":43678,"d":"4367800.00 %"}},{"$f":"DATEVALUE(\"1-SYYS\"&_VUOSI)","v":{"v":43709,"d":"4370900.00 %"}},{"$f":"DATEVALUE(\"1-LOKA\"&_VUOSI)","v":{"v":43739,"d":"4373900.00 %"}},{"$f":"DATEVALUE(\"1-MARRAS\"&_VUOSI)","v":{"v":43770,"d":"4377000.00 %"}},{"$f":"DATEVALUE(\"1-JOULU\"&_VUOSI)","v":{"v":43800,"d":"4380000.00 %"}}]
[{"$nulls":3},{"$f":"EOMONTH(D3,0)","v":{"v":43496,"d":"4349600.00 %"}},{"$f":"EOMONTH(E3,0)","v":{"v":43524,"d":"4352400.00 %"}},{"$f":"EOMONTH(F3,0)","v":{"v":43555,"d":"4355500.00 %"}},{"$f":"EOMONTH(G3,0)","v":{"v":43585,"d":"4358500.00 %"}},{"$f":"EOMONTH(H3,0)","v":{"v":43616,"d":"4361600.00 %"}},{"$f":"EOMONTH(I3,0)","v":{"v":43646,"d":"4364600.00 %"}},{"v":43677,"d":"4367700.00 %"},{"v":43708,"d":"4370800.00 %"},{"v":43738,"d":"4373800.00 %"},{"v":43769,"d":"4376900.00 %"},{"v":43799,"d":"4379900.00 %"},{"v":43830,"d":"4383000.00 %"}]
[null,"Kirjanpidon koodi","Tilin otsikko","Tammikuu","Helmikuu","Maaliskuu","Huhtikuu","Toukokuu","Kesäkuu","Heinäkuu","Elokuu","Syyskuu","Lokakuu","Marraskuu","Joulukuu","Summa"," "]
[null,1000,"Mainonta",{"$f":"SUMIFS(Eritellyt_kulut[Sekin summa],Eritellyt_kulut[Kirjanpidon koodi],Kuukausikulujen_yhteenveto[[#This Row],[Kirjanpidon koodi]],Eritellyt_kulut[Laskun päivämäärä],\">=\"&D$3,Eritellyt_kulut[Laskun päivämäärä],\"<=\"&D$4)+SUMIFS(Muut[Sekin summa],Muut[Kirjanpidon koodi],Kuukausikulujen_yhteenveto[[#This Row],[Kirjanpidon koodi]],Muut[Päivämäärän tarkistuksen pyyntö aloitettu],\">=\"&DATEVALUE(\"1.\"&Kuukausikulujen_yhteenveto[[#Headers],[Tammikuu]]&_xlfn.SINGLE(_VUOSI)),Muut[Päivämäärän tarkistuksen pyyntö aloitettu],\"<=\"&D$4)","v":{"v":0,"d":"0.00 €"}},{"$f":"SUMIFS(Eritellyt_kulut[Sekin summa],Eritellyt_kulut[Kirjanpidon koodi],Kuukausikulujen_yhteenveto[[#This Row],[Kirjanpidon koodi]],Eritellyt_kulut[Laskun päivämäärä],\">=\"&E$3,Eritellyt_kulut[Laskun päivämäärä],\"<=\"&E$4)+SUMIFS(Muut[Sekin summa],Muut[Kirjanpidon koodi],Kuukausikulujen_yhteenveto[[#This Row],[Kirjanpidon koodi]],Muut[Päivämäärän tarkistuksen pyyntö aloitettu],\">=\"&DATEVALUE(\"1.\"&Kuukausikulujen_yhteenveto[[#Headers],[Helmikuu]]&_xlfn.SINGLE(_VUOSI)),Muut[Päivämäärän tarkistuksen pyyntö aloitettu],\"<=\"&E$4)","v":{"v":0,"d":"0.00 €"}},{"$f":"SUMIFS(Eritellyt_kulut[Sekin summa],Eritellyt_kulut[Kirjanpidon koodi],Kuukausikulujen_yhteenveto[[#This Row],[Kirjanpidon koodi]],Eritellyt_kulut[Laskun päivämäärä],\">=\"&F$3,Eritellyt_kulut[Laskun päivämäärä],\"<=\"&F$4)+SUMIFS(Muut[Sekin summa],Muut[Kirjanpidon koodi],Kuukausikulujen_yhteenveto[[#This Row],[Kirjanpidon koodi]],Muut[Päivämäärän tarkistuksen pyyntö aloitettu],\">=\"&DATEVALUE(\"1.\"&Kuukausikulujen_yhteenveto[[#Headers],[Maaliskuu]]&_xlfn.SINGLE(_VUOSI)),Muut[Päivämäärän tarkistuksen pyyntö aloitettu],\"<=\"&F$4)","v":{"v":0,"d":"0.00 €"}},{"$f":"SUMIFS(Eritellyt_kulut[Sekin summa],Eritellyt_kulut[Kirjanpidon koodi],Kuukausikulujen_yhteenveto[[#This Row],[Kirjanpidon koodi]],Eritellyt_kulut[Laskun päivämäärä],\">=\"&G$3,Eritellyt_kulut[Laskun päivämäärä],\"<=\"&G$4)+SUMIFS(Muut[Sekin summa],Muut[Kirjanpidon koodi],Kuukausikulujen_yhteenveto[[#This Row],[Kirjanpidon koodi]],Muut[Päivämäärän tarkistuksen pyyntö aloitettu],\">=\"&DATEVALUE(\"1.\"&Kuukausikulujen_yhteenveto[[#Headers],[Huhtikuu]]&_xlfn.SINGLE(_VUOSI)),Muut[Päivämäärän tarkistuksen pyyntö aloitettu],\"<=\"&G$4)","v":{"v":0,"d":"0.00 €"}},{"$f":"SUMIFS(Eritellyt_kulut[Sekin summa],Eritellyt_kulut[Kirjanpidon koodi],Kuukausikulujen_yhteenveto[[#This Row],[Kirjanpidon koodi]],Eritellyt_kulut[Laskun päivämäärä],\">=\"&H$3,Eritellyt_kulut[Laskun päivämäärä],\"<=\"&H$4)+SUMIFS(Muut[Sekin summa],Muut[Kirjanpidon koodi],Kuukausikulujen_yhteenveto[[#This Row],[Kirjanpidon koodi]],Muut[Päivämäärän tarkistuksen pyyntö aloitettu],\">=\"&DATEVALUE(\"1.\"&Kuukausikulujen_yhteenveto[[#Headers],[Toukokuu]]&_xlfn.SINGLE(_VUOSI)),Muut[Päivämäärän tarkistuksen pyyntö aloitettu],\"<=\"&H$4)","v":{"v":0,"d":"0.00 €"}},{"$f":"SUMIFS(Eritellyt_kulut[Sekin summa],Eritellyt_kulut[Kirjanpidon koodi],Kuukausikulujen_yhteenveto[[#This Row],[Kirjanpidon koodi]],Eritellyt_kulut[Laskun päivämäärä],\">=\"&I$3,Eritellyt_kulut[Laskun päivämäärä],\"<=\"&I$4)+SUMIFS(Muut[Sekin summa],Muut[Kirjanpidon koodi],Kuukausikulujen_yhteenveto[[#This Row],[Kirjanpidon koodi]],Muut[Päivämäärän tarkistuksen pyyntö aloitettu],\">=\"&DATEVALUE(\"1.\"&Kuukausikulujen_yhteenveto[[#Headers],[Kesäkuu]]&_xlfn.SINGLE(_VUOSI)),Muut[Päivämäärän tarkistuksen pyyntö aloitettu],\"<=\"&I$4)","v":{"v":0,"d":"0.00 €"}},{"$f":"SUMIFS(Eritellyt_kulut[Sekin summa],Eritellyt_kulut[Kirjanpidon koodi],Kuukausikulujen_yhteenveto[[#This Row],[Kirjanpidon koodi]],Eritellyt_kulut[Laskun päivämäärä],\">=\"&J$3,Eritellyt_kulut[Laskun päivämäärä],\"<=\"&J$4)+SUMIFS(Muut[Sekin summa],Muut[Kirjanpidon koodi],Kuukausikulujen_yhteenveto[[#This Row],[Kirjanpidon koodi]],Muut[Päivämäärän tarkistuksen pyyntö aloitettu],\">=\"&DATEVALUE(\"1.\"&Kuukausikulujen_yhteenveto[[#Headers],[Heinäkuu]]&_xlfn.SINGLE(_VUOSI)),Muut[Päivämäärän tarkistuksen pyyntö aloitettu],\"<=\"&J$4)","v":{"v":0,"d":"0.00 €"}},{"$f":"SUMIFS(Eritellyt_kulut[Sekin summa],Eritellyt_kulut[Kirjanpidon koodi],Kuukausikulujen_yhteenveto[[#This Row],[Kirjanpidon koodi]],Eritellyt_kulut[Laskun päivämäärä],\">=\"&K$3,Eritellyt_kulut[Laskun päivämäärä],\"<=\"&K$4)+SUMIFS(Muut[Sekin summa],Muut[Kirjanpidon koodi],Kuukausikulujen_yhteenveto[[#This Row],[Kirjanpidon koodi]],Muut[Päivämäärän tarkistuksen pyyntö aloitettu],\">=\"&DATEVALUE(\"1.\"&Kuukausikulujen_yhteenveto[[#Headers],[Elokuu]]&_xlfn.SINGLE(_VUOSI)),Muut[Päivämäärän tarkistuksen pyyntö aloitettu],\"<=\"&K$4)","v":{"v":0,"d":"0.00 €"}},{"$f":"SUMIFS(Eritellyt_kulut[Sekin summa],Eritellyt_kulut[Kirjanpidon koodi],Kuukausikulujen_yhteenveto[[#This Row],[Kirjanpidon koodi]],Eritellyt_kulut[Laskun päivämäärä],\">=\"&L$3,Eritellyt_kulut[Laskun päivämäärä],\"<=\"&L$4)+SUMIFS(Muut[Sekin summa],Muut[Kirjanpidon koodi],Kuukausikulujen_yhteenveto[[#This Row],[Kirjanpidon koodi]],Muut[Päivämäärän tarkistuksen pyyntö aloitettu],\">=\"&DATEVALUE(\"1.\"&Kuukausikulujen_yhteenveto[[#Headers],[Syyskuu]]&_xlfn.SINGLE(_VUOSI)),Muut[Päivämäärän tarkistuksen pyyntö aloitettu],\"<=\"&L$4)","v":{"v":0,"d":"0.00 €"}},{"$f":"SUMIFS(Eritellyt_kulut[Sekin summa],Eritellyt_kulut[Kirjanpidon koodi],Kuukausikulujen_yhteenveto[[#This Row],[Kirjanpidon koodi]],Eritellyt_kulut[Laskun päivämäärä],\">=\"&M$3,Eritellyt_kulut[Laskun päivämäärä],\"<=\"&M$4)+SUMIFS(Muut[Sekin summa],Muut[Kirjanpidon koodi],Kuukausikulujen_yhteenveto[[#This Row],[Kirjanpidon koodi]],Muut[Päivämäärän tarkistuksen pyyntö aloitettu],\">=\"&DATEVALUE(\"1.\"&Kuukausikulujen_yhteenveto[[#Headers],[Lokakuu]]&_xlfn.SINGLE(_VUOSI)),Muut[Päivämäärän tarkistuksen pyyntö aloitettu],\"<=\"&M$4)","v":{"v":0,"d":"0.00 €"}},{"$f":"SUMIFS(Eritellyt_kulut[Sekin summa],Eritellyt_kulut[Kirjanpidon koodi],Kuukausikulujen_yhteenveto[[#This Row],[Kirjanpidon koodi]],Eritellyt_kulut[Laskun päivämäärä],\">=\"&N$3,Eritellyt_kulut[Laskun päivämäärä],\"<=\"&N$4)+SUMIFS(Muut[Sekin summa],Muut[Kirjanpidon koodi],Kuukausikulujen_yhteenveto[[#This Row],[Kirjanpidon koodi]],Muut[Päivämäärän tarkistuksen pyyntö aloitettu],\">=\"&DATEVALUE(\"1.\"&Kuukausikulujen_yhteenveto[[#Headers],[Marraskuu]]&_xlfn.SINGLE(_VUOSI)),Muut[Päivämäärän tarkistuksen pyyntö aloitettu],\"<=\"&N$4)","v":{"v":0,"d":"0.00 €"}},{"$f":"SUMIFS(Eritellyt_kulut[Sekin summa],Eritellyt_kulut[Kirjanpidon koodi],Kuukausikulujen_yhteenveto[[#This Row],[Kirjanpidon koodi]],Eritellyt_kulut[Laskun päivämäärä],\">=\"&O$3,Eritellyt_kulut[Laskun päivämäärä],\"<=\"&O$4)+SUMIFS(Muut[Sekin summa],Muut[Kirjanpidon koodi],Kuukausikulujen_yhteenveto[[#This Row],[Kirjanpidon koodi]],Muut[Päivämäärän tarkistuksen pyyntö aloitettu],\">=\"&DATEVALUE(\"1.\"&Kuukausikulujen_yhteenveto[[#Headers],[Joulukuu]]&_xlfn.SINGLE(_VUOSI)),Muut[Päivämäärän tarkistuksen pyyntö aloitettu],\"<=\"&O$4)","v":{"v":0,"d":"0.00 €"}},{"$f":"SUM(Kuukausikulujen_yhteenveto[[#This Row],[Tammikuu]:[Joulukuu]])","v":{"v":0,"d":"0.00 €"}}]
[null,2000,"Toimistolaitteet",{"$f":"SUMIFS(Eritellyt_kulut[Sekin summa],Eritellyt_kulut[Kirjanpidon koodi],Kuukausikulujen_yhteenveto[[#This Row],[Kirjanpidon koodi]],Eritellyt_kulut[Laskun päivämäärä],\">=\"&D$3,Eritellyt_kulut[Laskun päivämäärä],\"<=\"&D$4)+SUMIFS(Muut[Sekin summa],Muut[Kirjanpidon koodi],Kuukausikulujen_yhteenveto[[#This Row],[Kirjanpidon koodi]],Muut[Päivämäärän tarkistuksen pyyntö aloitettu],\">=\"&DATEVALUE(\"1.\"&Kuukausikulujen_yhteenveto[[#Headers],[Tammikuu]]&_xlfn.SINGLE(_VUOSI)),Muut[Päivämäärän tarkistuksen pyyntö aloitettu],\"<=\"&D$4)","v":{"v":0,"d":"0.00 €"}},{"$f":"SUMIFS(Eritellyt_kulut[Sekin summa],Eritellyt_kulut[Kirjanpidon koodi],Kuukausikulujen_yhteenveto[[#This Row],[Kirjanpidon koodi]],Eritellyt_kulut[Laskun päivämäärä],\">=\"&E$3,Eritellyt_kulut[Laskun päivämäärä],\"<=\"&E$4)+SUMIFS(Muut[Sekin summa],Muut[Kirjanpidon koodi],Kuukausikulujen_yhteenveto[[#This Row],[Kirjanpidon koodi]],Muut[Päivämäärän tarkistuksen pyyntö aloitettu],\">=\"&DATEVALUE(\"1.\"&Kuukausikulujen_yhteenveto[[#Headers],[Helmikuu]]&_xlfn.SINGLE(_VUOSI)),Muut[Päivämäärän tarkistuksen pyyntö aloitettu],\"<=\"&E$4)","v":{"v":0,"d":"0.00 €"}},{"$f":"SUMIFS(Eritellyt_kulut[Sekin summa],Eritellyt_kulut[Kirjanpidon koodi],Kuukausikulujen_yhteenveto[[#This Row],[Kirjanpidon koodi]],Eritellyt_kulut[Laskun päivämäärä],\">=\"&F$3,Eritellyt_kulut[Laskun päivämäärä],\"<=\"&F$4)+SUMIFS(Muut[Sekin summa],Muut[Kirjanpidon koodi],Kuukausikulujen_yhteenveto[[#This Row],[Kirjanpidon koodi]],Muut[Päivämäärän tarkistuksen pyyntö aloitettu],\">=\"&DATEVALUE(\"1.\"&Kuukausikulujen_yhteenveto[[#Headers],[Maaliskuu]]&_xlfn.SINGLE(_VUOSI)),Muut[Päivämäärän tarkistuksen pyyntö aloitettu],\"<=\"&F$4)","v":{"v":0,"d":"0.00 €"}},{"$f":"SUMIFS(Eritellyt_kulut[Sekin summa],Eritellyt_kulut[Kirjanpidon koodi],Kuukausikulujen_yhteenveto[[#This Row],[Kirjanpidon koodi]],Eritellyt_kulut[Laskun päivämäärä],\">=\"&G$3,Eritellyt_kulut[Laskun päivämäärä],\"<=\"&G$4)+SUMIFS(Muut[Sekin summa],Muut[Kirjanpidon koodi],Kuukausikulujen_yhteenveto[[#This Row],[Kirjanpidon koodi]],Muut[Päivämäärän tarkistuksen pyyntö aloitettu],\">=\"&DATEVALUE(\"1.\"&Kuukausikulujen_yhteenveto[[#Headers],[Huhtikuu]]&_xlfn.SINGLE(_VUOSI)),Muut[Päivämäärän tarkistuksen pyyntö aloitettu],\"<=\"&G$4)","v":{"v":0,"d":"0.00 €"}},{"$f":"SUMIFS(Eritellyt_kulut[Sekin summa],Eritellyt_kulut[Kirjanpidon koodi],Kuukausikulujen_yhteenveto[[#This Row],[Kirjanpidon koodi]],Eritellyt_kulut[Laskun päivämäärä],\">=\"&H$3,Eritellyt_kulut[Laskun päivämäärä],\"<=\"&H$4)+SUMIFS(Muut[Sekin summa],Muut[Kirjanpidon koodi],Kuukausikulujen_yhteenveto[[#This Row],[Kirjanpidon koodi]],Muut[Päivämäärän tarkistuksen pyyntö aloitettu],\">=\"&DATEVALUE(\"1.\"&Kuukausikulujen_yhteenveto[[#Headers],[Toukokuu]]&_xlfn.SINGLE(_VUOSI)),Muut[Päivämäärän tarkistuksen pyyntö aloitettu],\"<=\"&H$4)","v":{"v":0,"d":"0.00 €"}},{"$f":"SUMIFS(Eritellyt_kulut[Sekin summa],Eritellyt_kulut[Kirjanpidon koodi],Kuukausikulujen_yhteenveto[[#This Row],[Kirjanpidon koodi]],Eritellyt_kulut[Laskun päivämäärä],\">=\"&I$3,Eritellyt_kulut[Laskun päivämäärä],\"<=\"&I$4)+SUMIFS(Muut[Sekin summa],Muut[Kirjanpidon koodi],Kuukausikulujen_yhteenveto[[#This Row],[Kirjanpidon koodi]],Muut[Päivämäärän tarkistuksen pyyntö aloitettu],\">=\"&DATEVALUE(\"1.\"&Kuukausikulujen_yhteenveto[[#Headers],[Kesäkuu]]&_xlfn.SINGLE(_VUOSI)),Muut[Päivämäärän tarkistuksen pyyntö aloitettu],\"<=\"&I$4)","v":{"v":0,"d":"0.00 €"}},{"$f":"SUMIFS(Eritellyt_kulut[Sekin summa],Eritellyt_kulut[Kirjanpidon koodi],Kuukausikulujen_yhteenveto[[#This Row],[Kirjanpidon koodi]],Eritellyt_kulut[Laskun päivämäärä],\">=\"&J$3,Eritellyt_kulut[Laskun päivämäärä],\"<=\"&J$4)+SUMIFS(Muut[Sekin summa],Muut[Kirjanpidon koodi],Kuukausikulujen_yhteenveto[[#This Row],[Kirjanpidon koodi]],Muut[Päivämäärän tarkistuksen pyyntö aloitettu],\">=\"&DATEVALUE(\"1.\"&Kuukausikulujen_yhteenveto[[#Headers],[Heinäkuu]]&_xlfn.SINGLE(_VUOSI)),Muut[Päivämäärän tarkistuksen pyyntö aloitettu],\"<=\"&J$4)","v":{"v":0,"d":"0.00 €"}},{"$f":"SUMIFS(Eritellyt_kulut[Sekin summa],Eritellyt_kulut[Kirjanpidon koodi],Kuukausikulujen_yhteenveto[[#This Row],[Kirjanpidon koodi]],Eritellyt_kulut[Laskun päivämäärä],\">=\"&K$3,Eritellyt_kulut[Laskun päivämäärä],\"<=\"&K$4)+SUMIFS(Muut[Sekin summa],Muut[Kirjanpidon koodi],Kuukausikulujen_yhteenveto[[#This Row],[Kirjanpidon koodi]],Muut[Päivämäärän tarkistuksen pyyntö aloitettu],\">=\"&DATEVALUE(\"1.\"&Kuukausikulujen_yhteenveto[[#Headers],[Elokuu]]&_xlfn.SINGLE(_VUOSI)),Muut[Päivämäärän tarkistuksen pyyntö aloitettu],\"<=\"&K$4)","v":{"v":0,"d":"0.00 €"}},{"$f":"SUMIFS(Eritellyt_kulut[Sekin summa],Eritellyt_kulut[Kirjanpidon koodi],Kuukausikulujen_yhteenveto[[#This Row],[Kirjanpidon koodi]],Eritellyt_kulut[Laskun päivämäärä],\">=\"&L$3,Eritellyt_kulut[Laskun päivämäärä],\"<=\"&L$4)+SUMIFS(Muut[Sekin summa],Muut[Kirjanpidon koodi],Kuukausikulujen_yhteenveto[[#This Row],[Kirjanpidon koodi]],Muut[Päivämäärän tarkistuksen pyyntö aloitettu],\">=\"&DATEVALUE(\"1.\"&Kuukausikulujen_yhteenveto[[#Headers],[Syyskuu]]&_xlfn.SINGLE(_VUOSI)),Muut[Päivämäärän tarkistuksen pyyntö aloitettu],\"<=\"&L$4)","v":{"v":0,"d":"0.00 €"}},{"$f":"SUMIFS(Eritellyt_kulut[Sekin summa],Eritellyt_kulut[Kirjanpidon koodi],Kuukausikulujen_yhteenveto[[#This Row],[Kirjanpidon koodi]],Eritellyt_kulut[Laskun päivämäärä],\">=\"&M$3,Eritellyt_kulut[Laskun päivämäärä],\"<=\"&M$4)+SUMIFS(Muut[Sekin summa],Muut[Kirjanpidon koodi],Kuukausikulujen_yhteenveto[[#This Row],[Kirjanpidon koodi]],Muut[Päivämäärän tarkistuksen pyyntö aloitettu],\">=\"&DATEVALUE(\"1.\"&Kuukausikulujen_yhteenveto[[#Headers],[Lokakuu]]&_xlfn.SINGLE(_VUOSI)),Muut[Päivämäärän tarkistuksen pyyntö aloitettu],\"<=\"&M$4)","v":{"v":0,"d":"0.00 €"}},{"$f":"SUMIFS(Eritellyt_kulut[Sekin summa],Eritellyt_kulut[Kirjanpidon koodi],Kuukausikulujen_yhteenveto[[#This Row],[Kirjanpidon koodi]],Eritellyt_kulut[Laskun päivämäärä],\">=\"&N$3,Eritellyt_kulut[Laskun päivämäärä],\"<=\"&N$4)+SUMIFS(Muut[Sekin summa],Muut[Kirjanpidon koodi],Kuukausikulujen_yhteenveto[[#This Row],[Kirjanpidon koodi]],Muut[Päivämäärän tarkistuksen pyyntö aloitettu],\">=\"&DATEVALUE(\"1.\"&Kuukausikulujen_yhteenveto[[#Headers],[Marraskuu]]&_xlfn.SINGLE(_VUOSI)),Muut[Päivämäärän tarkistuksen pyyntö aloitettu],\"<=\"&N$4)","v":{"v":0,"d":"0.00 €"}},{"$f":"SUMIFS(Eritellyt_kulut[Sekin summa],Eritellyt_kulut[Kirjanpidon koodi],Kuukausikulujen_yhteenveto[[#This Row],[Kirjanpidon koodi]],Eritellyt_kulut[Laskun päivämäärä],\">=\"&O$3,Eritellyt_kulut[Laskun päivämäärä],\"<=\"&O$4)+SUMIFS(Muut[Sekin summa],Muut[Kirjanpidon koodi],Kuukausikulujen_yhteenveto[[#This Row],[Kirjanpidon koodi]],Muut[Päivämäärän tarkistuksen pyyntö aloitettu],\">=\"&DATEVALUE(\"1.\"&Kuukausikulujen_yhteenveto[[#Headers],[Joulukuu]]&_xlfn.SINGLE(_VUOSI)),Muut[Päivämäärän tarkistuksen pyyntö aloitettu],\"<=\"&O$4)","v":{"v":0,"d":"0.00 €"}},{"$f":"SUM(Kuukausikulujen_yhteenveto[[#This Row],[Tammikuu]:[Joulukuu]])","v":{"v":0,"d":"0.00 €"}}]
[null,3000,"Tulostimet",{"$f":"SUMIFS(Eritellyt_kulut[Sekin summa],Eritellyt_kulut[Kirjanpidon koodi],Kuukausikulujen_yhteenveto[[#This Row],[Kirjanpidon koodi]],Eritellyt_kulut[Laskun päivämäärä],\">=\"&D$3,Eritellyt_kulut[Laskun päivämäärä],\"<=\"&D$4)+SUMIFS(Muut[Sekin summa],Muut[Kirjanpidon koodi],Kuukausikulujen_yhteenveto[[#This Row],[Kirjanpidon koodi]],Muut[Päivämäärän tarkistuksen pyyntö aloitettu],\">=\"&DATEVALUE(\"1.\"&Kuukausikulujen_yhteenveto[[#Headers],[Tammikuu]]&_xlfn.SINGLE(_VUOSI)),Muut[Päivämäärän tarkistuksen pyyntö aloitettu],\"<=\"&D$4)","v":{"v":0,"d":"0.00 €"}},{"$f":"SUMIFS(Eritellyt_kulut[Sekin summa],Eritellyt_kulut[Kirjanpidon koodi],Kuukausikulujen_yhteenveto[[#This Row],[Kirjanpidon koodi]],Eritellyt_kulut[Laskun päivämäärä],\">=\"&E$3,Eritellyt_kulut[Laskun päivämäärä],\"<=\"&E$4)+SUMIFS(Muut[Sekin summa],Muut[Kirjanpidon koodi],Kuukausikulujen_yhteenveto[[#This Row],[Kirjanpidon koodi]],Muut[Päivämäärän tarkistuksen pyyntö aloitettu],\">=\"&DATEVALUE(\"1.\"&Kuukausikulujen_yhteenveto[[#Headers],[Helmikuu]]&_xlfn.SINGLE(_VUOSI)),Muut[Päivämäärän tarkistuksen pyyntö aloitettu],\"<=\"&E$4)","v":{"v":0,"d":"0.00 €"}},{"$f":"SUMIFS(Eritellyt_kulut[Sekin summa],Eritellyt_kulut[Kirjanpidon koodi],Kuukausikulujen_yhteenveto[[#This Row],[Kirjanpidon koodi]],Eritellyt_kulut[Laskun päivämäärä],\">=\"&F$3,Eritellyt_kulut[Laskun päivämäärä],\"<=\"&F$4)+SUMIFS(Muut[Sekin summa],Muut[Kirjanpidon koodi],Kuukausikulujen_yhteenveto[[#This Row],[Kirjanpidon koodi]],Muut[Päivämäärän tarkistuksen pyyntö aloitettu],\">=\"&DATEVALUE(\"1.\"&Kuukausikulujen_yhteenveto[[#Headers],[Maaliskuu]]&_xlfn.SINGLE(_VUOSI)),Muut[Päivämäärän tarkistuksen pyyntö aloitettu],\"<=\"&F$4)","v":{"v":0,"d":"0.00 €"}},{"$f":"SUMIFS(Eritellyt_kulut[Sekin summa],Eritellyt_kulut[Kirjanpidon koodi],Kuukausikulujen_yhteenveto[[#This Row],[Kirjanpidon koodi]],Eritellyt_kulut[Laskun päivämäärä],\">=\"&G$3,Eritellyt_kulut[Laskun päivämäärä],\"<=\"&G$4)+SUMIFS(Muut[Sekin summa],Muut[Kirjanpidon koodi],Kuukausikulujen_yhteenveto[[#This Row],[Kirjanpidon koodi]],Muut[Päivämäärän tarkistuksen pyyntö aloitettu],\">=\"&DATEVALUE(\"1.\"&Kuukausikulujen_yhteenveto[[#Headers],[Huhtikuu]]&_xlfn.SINGLE(_VUOSI)),Muut[Päivämäärän tarkistuksen pyyntö aloitettu],\"<=\"&G$4)","v":{"v":0,"d":"0.00 €"}},{"$f":"SUMIFS(Eritellyt_kulut[Sekin summa],Eritellyt_kulut[Kirjanpidon koodi],Kuukausikulujen_yhteenveto[[#This Row],[Kirjanpidon koodi]],Eritellyt_kulut[Laskun päivämäärä],\">=\"&H$3,Eritellyt_kulut[Laskun päivämäärä],\"<=\"&H$4)+SUMIFS(Muut[Sekin summa],Muut[Kirjanpidon koodi],Kuukausikulujen_yhteenveto[[#This Row],[Kirjanpidon koodi]],Muut[Päivämäärän tarkistuksen pyyntö aloitettu],\">=\"&DATEVALUE(\"1.\"&Kuukausikulujen_yhteenveto[[#Headers],[Toukokuu]]&_xlfn.SINGLE(_VUOSI)),Muut[Päivämäärän tarkistuksen pyyntö aloitettu],\"<=\"&H$4)","v":{"v":0,"d":"0.00 €"}},{"$f":"SUMIFS(Eritellyt_kulut[Sekin summa],Eritellyt_kulut[Kirjanpidon koodi],Kuukausikulujen_yhteenveto[[#This Row],[Kirjanpidon koodi]],Eritellyt_kulut[Laskun päivämäärä],\">=\"&I$3,Eritellyt_kulut[Laskun päivämäärä],\"<=\"&I$4)+SUMIFS(Muut[Sekin summa],Muut[Kirjanpidon koodi],Kuukausikulujen_yhteenveto[[#This Row],[Kirjanpidon koodi]],Muut[Päivämäärän tarkistuksen pyyntö aloitettu],\">=\"&DATEVALUE(\"1.\"&Kuukausikulujen_yhteenveto[[#Headers],[Kesäkuu]]&_xlfn.SINGLE(_VUOSI)),Muut[Päivämäärän tarkistuksen pyyntö aloitettu],\"<=\"&I$4)","v":{"v":0,"d":"0.00 €"}},{"$f":"SUMIFS(Eritellyt_kulut[Sekin summa],Eritellyt_kulut[Kirjanpidon koodi],Kuukausikulujen_yhteenveto[[#This Row],[Kirjanpidon koodi]],Eritellyt_kulut[Laskun päivämäärä],\">=\"&J$3,Eritellyt_kulut[Laskun päivämäärä],\"<=\"&J$4)+SUMIFS(Muut[Sekin summa],Muut[Kirjanpidon koodi],Kuukausikulujen_yhteenveto[[#This Row],[Kirjanpidon koodi]],Muut[Päivämäärän tarkistuksen pyyntö aloitettu],\">=\"&DATEVALUE(\"1.\"&Kuukausikulujen_yhteenveto[[#Headers],[Heinäkuu]]&_xlfn.SINGLE(_VUOSI)),Muut[Päivämäärän tarkistuksen pyyntö aloitettu],\"<=\"&J$4)","v":{"v":0,"d":"0.00 €"}},{"$f":"SUMIFS(Eritellyt_kulut[Sekin summa],Eritellyt_kulut[Kirjanpidon koodi],Kuukausikulujen_yhteenveto[[#This Row],[Kirjanpidon koodi]],Eritellyt_kulut[Laskun päivämäärä],\">=\"&K$3,Eritellyt_kulut[Laskun päivämäärä],\"<=\"&K$4)+SUMIFS(Muut[Sekin summa],Muut[Kirjanpidon koodi],Kuukausikulujen_yhteenveto[[#This Row],[Kirjanpidon koodi]],Muut[Päivämäärän tarkistuksen pyyntö aloitettu],\">=\"&DATEVALUE(\"1.\"&Kuukausikulujen_yhteenveto[[#Headers],[Elokuu]]&_xlfn.SINGLE(_VUOSI)),Muut[Päivämäärän tarkistuksen pyyntö aloitettu],\"<=\"&K$4)","v":{"v":0,"d":"0.00 €"}},{"$f":"SUMIFS(Eritellyt_kulut[Sekin summa],Eritellyt_kulut[Kirjanpidon koodi],Kuukausikulujen_yhteenveto[[#This Row],[Kirjanpidon koodi]],Eritellyt_kulut[Laskun päivämäärä],\">=\"&L$3,Eritellyt_kulut[Laskun päivämäärä],\"<=\"&L$4)+SUMIFS(Muut[Sekin summa],Muut[Kirjanpidon koodi],Kuukausikulujen_yhteenveto[[#This Row],[Kirjanpidon koodi]],Muut[Päivämäärän tarkistuksen pyyntö aloitettu],\">=\"&DATEVALUE(\"1.\"&Kuukausikulujen_yhteenveto[[#Headers],[Syyskuu]]&_xlfn.SINGLE(_VUOSI)),Muut[Päivämäärän tarkistuksen pyyntö aloitettu],\"<=\"&L$4)","v":{"v":0,"d":"0.00 €"}},{"$f":"SUMIFS(Eritellyt_kulut[Sekin summa],Eritellyt_kulut[Kirjanpidon koodi],Kuukausikulujen_yhteenveto[[#This Row],[Kirjanpidon koodi]],Eritellyt_kulut[Laskun päivämäärä],\">=\"&M$3,Eritellyt_kulut[Laskun päivämäärä],\"<=\"&M$4)+SUMIFS(Muut[Sekin summa],Muut[Kirjanpidon koodi],Kuukausikulujen_yhteenveto[[#This Row],[Kirjanpidon koodi]],Muut[Päivämäärän tarkistuksen pyyntö aloitettu],\">=\"&DATEVALUE(\"1.\"&Kuukausikulujen_yhteenveto[[#Headers],[Lokakuu]]&_xlfn.SINGLE(_VUOSI)),Muut[Päivämäärän tarkistuksen pyyntö aloitettu],\"<=\"&M$4)","v":{"v":0,"d":"0.00 €"}},{"$f":"SUMIFS(Eritellyt_kulut[Sekin summa],Eritellyt_kulut[Kirjanpidon koodi],Kuukausikulujen_yhteenveto[[#This Row],[Kirjanpidon koodi]],Eritellyt_kulut[Laskun päivämäärä],\">=\"&N$3,Eritellyt_kulut[Laskun päivämäärä],\"<=\"&N$4)+SUMIFS(Muut[Sekin summa],Muut[Kirjanpidon koodi],Kuukausikulujen_yhteenveto[[#This Row],[Kirjanpidon koodi]],Muut[Päivämäärän tarkistuksen pyyntö aloitettu],\">=\"&DATEVALUE(\"1.\"&Kuukausikulujen_yhteenveto[[#Headers],[Marraskuu]]&_xlfn.SINGLE(_VUOSI)),Muut[Päivämäärän tarkistuksen pyyntö aloitettu],\"<=\"&N$4)","v":{"v":0,"d":"0.00 €"}},{"$f":"SUMIFS(Eritellyt_kulut[Sekin summa],Eritellyt_kulut[Kirjanpidon koodi],Kuukausikulujen_yhteenveto[[#This Row],[Kirjanpidon koodi]],Eritellyt_kulut[Laskun päivämäärä],\">=\"&O$3,Eritellyt_kulut[Laskun päivämäärä],\"<=\"&O$4)+SUMIFS(Muut[Sekin summa],Muut[Kirjanpidon koodi],Kuukausikulujen_yhteenveto[[#This Row],[Kirjanpidon koodi]],Muut[Päivämäärän tarkistuksen pyyntö aloitettu],\">=\"&DATEVALUE(\"1.\"&Kuukausikulujen_yhteenveto[[#Headers],[Joulukuu]]&_xlfn.SINGLE(_VUOSI)),Muut[Päivämäärän tarkistuksen pyyntö aloitettu],\"<=\"&O$4)","v":{"v":0,"d":"0.00 €"}},{"$f":"SUM(Kuukausikulujen_yhteenveto[[#This Row],[Tammikuu]:[Joulukuu]])","v":{"v":0,"d":"0.00 €"}}]
[null,4000,"Palvelimen kustannukset",{"$f":"SUMIFS(Eritellyt_kulut[Sekin summa],Eritellyt_kulut[Kirjanpidon koodi],Kuukausikulujen_yhteenveto[[#This Row],[Kirjanpidon koodi]],Eritellyt_kulut[Laskun päivämäärä],\">=\"&D$3,Eritellyt_kulut[Laskun päivämäärä],\"<=\"&D$4)+SUMIFS(Muut[Sekin summa],Muut[Kirjanpidon koodi],Kuukausikulujen_yhteenveto[[#This Row],[Kirjanpidon koodi]],Muut[Päivämäärän tarkistuksen pyyntö aloitettu],\">=\"&DATEVALUE(\"1.\"&Kuukausikulujen_yhteenveto[[#Headers],[Tammikuu]]&_xlfn.SINGLE(_VUOSI)),Muut[Päivämäärän tarkistuksen pyyntö aloitettu],\"<=\"&D$4)","v":{"v":0,"d":"0.00 €"}},{"$f":"SUMIFS(Eritellyt_kulut[Sekin summa],Eritellyt_kulut[Kirjanpidon koodi],Kuukausikulujen_yhteenveto[[#This Row],[Kirjanpidon koodi]],Eritellyt_kulut[Laskun päivämäärä],\">=\"&E$3,Eritellyt_kulut[Laskun päivämäärä],\"<=\"&E$4)+SUMIFS(Muut[Sekin summa],Muut[Kirjanpidon koodi],Kuukausikulujen_yhteenveto[[#This Row],[Kirjanpidon koodi]],Muut[Päivämäärän tarkistuksen pyyntö aloitettu],\">=\"&DATEVALUE(\"1.\"&Kuukausikulujen_yhteenveto[[#Headers],[Helmikuu]]&_xlfn.SINGLE(_VUOSI)),Muut[Päivämäärän tarkistuksen pyyntö aloitettu],\"<=\"&E$4)","v":{"v":0,"d":"0.00 €"}},{"$f":"SUMIFS(Eritellyt_kulut[Sekin summa],Eritellyt_kulut[Kirjanpidon koodi],Kuukausikulujen_yhteenveto[[#This Row],[Kirjanpidon koodi]],Eritellyt_kulut[Laskun päivämäärä],\">=\"&F$3,Eritellyt_kulut[Laskun päivämäärä],\"<=\"&F$4)+SUMIFS(Muut[Sekin summa],Muut[Kirjanpidon koodi],Kuukausikulujen_yhteenveto[[#This Row],[Kirjanpidon koodi]],Muut[Päivämäärän tarkistuksen pyyntö aloitettu],\">=\"&DATEVALUE(\"1.\"&Kuukausikulujen_yhteenveto[[#Headers],[Maaliskuu]]&_xlfn.SINGLE(_VUOSI)),Muut[Päivämäärän tarkistuksen pyyntö aloitettu],\"<=\"&F$4)","v":{"v":0,"d":"0.00 €"}},{"$f":"SUMIFS(Eritellyt_kulut[Sekin summa],Eritellyt_kulut[Kirjanpidon koodi],Kuukausikulujen_yhteenveto[[#This Row],[Kirjanpidon koodi]],Eritellyt_kulut[Laskun päivämäärä],\">=\"&G$3,Eritellyt_kulut[Laskun päivämäärä],\"<=\"&G$4)+SUMIFS(Muut[Sekin summa],Muut[Kirjanpidon koodi],Kuukausikulujen_yhteenveto[[#This Row],[Kirjanpidon koodi]],Muut[Päivämäärän tarkistuksen pyyntö aloitettu],\">=\"&DATEVALUE(\"1.\"&Kuukausikulujen_yhteenveto[[#Headers],[Huhtikuu]]&_xlfn.SINGLE(_VUOSI)),Muut[Päivämäärän tarkistuksen pyyntö aloitettu],\"<=\"&G$4)","v":{"v":0,"d":"0.00 €"}},{"$f":"SUMIFS(Eritellyt_kulut[Sekin summa],Eritellyt_kulut[Kirjanpidon koodi],Kuukausikulujen_yhteenveto[[#This Row],[Kirjanpidon koodi]],Eritellyt_kulut[Laskun päivämäärä],\">=\"&H$3,Eritellyt_kulut[Laskun päivämäärä],\"<=\"&H$4)+SUMIFS(Muut[Sekin summa],Muut[Kirjanpidon koodi],Kuukausikulujen_yhteenveto[[#This Row],[Kirjanpidon koodi]],Muut[Päivämäärän tarkistuksen pyyntö aloitettu],\">=\"&DATEVALUE(\"1.\"&Kuukausikulujen_yhteenveto[[#Headers],[Toukokuu]]&_xlfn.SINGLE(_VUOSI)),Muut[Päivämäärän tarkistuksen pyyntö aloitettu],\"<=\"&H$4)","v":{"v":0,"d":"0.00 €"}},{"$f":"SUMIFS(Eritellyt_kulut[Sekin summa],Eritellyt_kulut[Kirjanpidon koodi],Kuukausikulujen_yhteenveto[[#This Row],[Kirjanpidon koodi]],Eritellyt_kulut[Laskun päivämäärä],\">=\"&I$3,Eritellyt_kulut[Laskun päivämäärä],\"<=\"&I$4)+SUMIFS(Muut[Sekin summa],Muut[Kirjanpidon koodi],Kuukausikulujen_yhteenveto[[#This Row],[Kirjanpidon koodi]],Muut[Päivämäärän tarkistuksen pyyntö aloitettu],\">=\"&DATEVALUE(\"1.\"&Kuukausikulujen_yhteenveto[[#Headers],[Kesäkuu]]&_xlfn.SINGLE(_VUOSI)),Muut[Päivämäärän tarkistuksen pyyntö aloitettu],\"<=\"&I$4)","v":{"v":0,"d":"0.00 €"}},{"$f":"SUMIFS(Eritellyt_kulut[Sekin summa],Eritellyt_kulut[Kirjanpidon koodi],Kuukausikulujen_yhteenveto[[#This Row],[Kirjanpidon koodi]],Eritellyt_kulut[Laskun päivämäärä],\">=\"&J$3,Eritellyt_kulut[Laskun päivämäärä],\"<=\"&J$4)+SUMIFS(Muut[Sekin summa],Muut[Kirjanpidon koodi],Kuukausikulujen_yhteenveto[[#This Row],[Kirjanpidon koodi]],Muut[Päivämäärän tarkistuksen pyyntö aloitettu],\">=\"&DATEVALUE(\"1.\"&Kuukausikulujen_yhteenveto[[#Headers],[Heinäkuu]]&_xlfn.SINGLE(_VUOSI)),Muut[Päivämäärän tarkistuksen pyyntö aloitettu],\"<=\"&J$4)","v":{"v":0,"d":"0.00 €"}},{"$f":"SUMIFS(Eritellyt_kulut[Sekin summa],Eritellyt_kulut[Kirjanpidon koodi],Kuukausikulujen_yhteenveto[[#This Row],[Kirjanpidon koodi]],Eritellyt_kulut[Laskun päivämäärä],\">=\"&K$3,Eritellyt_kulut[Laskun päivämäärä],\"<=\"&K$4)+SUMIFS(Muut[Sekin summa],Muut[Kirjanpidon koodi],Kuukausikulujen_yhteenveto[[#This Row],[Kirjanpidon koodi]],Muut[Päivämäärän tarkistuksen pyyntö aloitettu],\">=\"&DATEVALUE(\"1.\"&Kuukausikulujen_yhteenveto[[#Headers],[Elokuu]]&_xlfn.SINGLE(_VUOSI)),Muut[Päivämäärän tarkistuksen pyyntö aloitettu],\"<=\"&K$4)","v":{"v":0,"d":"0.00 €"}},{"$f":"SUMIFS(Eritellyt_kulut[Sekin summa],Eritellyt_kulut[Kirjanpidon koodi],Kuukausikulujen_yhteenveto[[#This Row],[Kirjanpidon koodi]],Eritellyt_kulut[Laskun päivämäärä],\">=\"&L$3,Eritellyt_kulut[Laskun päivämäärä],\"<=\"&L$4)+SUMIFS(Muut[Sekin summa],Muut[Kirjanpidon koodi],Kuukausikulujen_yhteenveto[[#This Row],[Kirjanpidon koodi]],Muut[Päivämäärän tarkistuksen pyyntö aloitettu],\">=\"&DATEVALUE(\"1.\"&Kuukausikulujen_yhteenveto[[#Headers],[Syyskuu]]&_xlfn.SINGLE(_VUOSI)),Muut[Päivämäärän tarkistuksen pyyntö aloitettu],\"<=\"&L$4)","v":{"v":0,"d":"0.00 €"}},{"$f":"SUMIFS(Eritellyt_kulut[Sekin summa],Eritellyt_kulut[Kirjanpidon koodi],Kuukausikulujen_yhteenveto[[#This Row],[Kirjanpidon koodi]],Eritellyt_kulut[Laskun päivämäärä],\">=\"&M$3,Eritellyt_kulut[Laskun päivämäärä],\"<=\"&M$4)+SUMIFS(Muut[Sekin summa],Muut[Kirjanpidon koodi],Kuukausikulujen_yhteenveto[[#This Row],[Kirjanpidon koodi]],Muut[Päivämäärän tarkistuksen pyyntö aloitettu],\">=\"&DATEVALUE(\"1.\"&Kuukausikulujen_yhteenveto[[#Headers],[Lokakuu]]&_xlfn.SINGLE(_VUOSI)),Muut[Päivämäärän tarkistuksen pyyntö aloitettu],\"<=\"&M$4)","v":{"v":0,"d":"0.00 €"}},{"$f":"SUMIFS(Eritellyt_kulut[Sekin summa],Eritellyt_kulut[Kirjanpidon koodi],Kuukausikulujen_yhteenveto[[#This Row],[Kirjanpidon koodi]],Eritellyt_kulut[Laskun päivämäärä],\">=\"&N$3,Eritellyt_kulut[Laskun päivämäärä],\"<=\"&N$4)+SUMIFS(Muut[Sekin summa],Muut[Kirjanpidon koodi],Kuukausikulujen_yhteenveto[[#This Row],[Kirjanpidon koodi]],Muut[Päivämäärän tarkistuksen pyyntö aloitettu],\">=\"&DATEVALUE(\"1.\"&Kuukausikulujen_yhteenveto[[#Headers],[Marraskuu]]&_xlfn.SINGLE(_VUOSI)),Muut[Päivämäärän tarkistuksen pyyntö aloitettu],\"<=\"&N$4)","v":{"v":0,"d":"0.00 €"}},{"$f":"SUMIFS(Eritellyt_kulut[Sekin summa],Eritellyt_kulut[Kirjanpidon koodi],Kuukausikulujen_yhteenveto[[#This Row],[Kirjanpidon koodi]],Eritellyt_kulut[Laskun päivämäärä],\">=\"&O$3,Eritellyt_kulut[Laskun päivämäärä],\"<=\"&O$4)+SUMIFS(Muut[Sekin summa],Muut[Kirjanpidon koodi],Kuukausikulujen_yhteenveto[[#This Row],[Kirjanpidon koodi]],Muut[Päivämäärän tarkistuksen pyyntö aloitettu],\">=\"&DATEVALUE(\"1.\"&Kuukausikulujen_yhteenveto[[#Headers],[Joulukuu]]&_xlfn.SINGLE(_VUOSI)),Muut[Päivämäärän tarkistuksen pyyntö aloitettu],\"<=\"&O$4)","v":{"v":0,"d":"0.00 €"}},{"$f":"SUM(Kuukausikulujen_yhteenveto[[#This Row],[Tammikuu]:[Joulukuu]])","v":{"v":0,"d":"0.00 €"}}]
[null,5000,"Tarvikkeet",{"$f":"SUMIFS(Eritellyt_kulut[Sekin summa],Eritellyt_kulut[Kirjanpidon koodi],Kuukausikulujen_yhteenveto[[#This Row],[Kirjanpidon koodi]],Eritellyt_kulut[Laskun päivämäärä],\">=\"&D$3,Eritellyt_kulut[Laskun päivämäärä],\"<=\"&D$4)+SUMIFS(Muut[Sekin summa],Muut[Kirjanpidon koodi],Kuukausikulujen_yhteenveto[[#This Row],[Kirjanpidon koodi]],Muut[Päivämäärän tarkistuksen pyyntö aloitettu],\">=\"&DATEVALUE(\"1.\"&Kuukausikulujen_yhteenveto[[#Headers],[Tammikuu]]&_xlfn.SINGLE(_VUOSI)),Muut[Päivämäärän tarkistuksen pyyntö aloitettu],\"<=\"&D$4)","v":{"v":0,"d":"0.00 €"}},{"$f":"SUMIFS(Eritellyt_kulut[Sekin summa],Eritellyt_kulut[Kirjanpidon koodi],Kuukausikulujen_yhteenveto[[#This Row],[Kirjanpidon koodi]],Eritellyt_kulut[Laskun päivämäärä],\">=\"&E$3,Eritellyt_kulut[Laskun päivämäärä],\"<=\"&E$4)+SUMIFS(Muut[Sekin summa],Muut[Kirjanpidon koodi],Kuukausikulujen_yhteenveto[[#This Row],[Kirjanpidon koodi]],Muut[Päivämäärän tarkistuksen pyyntö aloitettu],\">=\"&DATEVALUE(\"1.\"&Kuukausikulujen_yhteenveto[[#Headers],[Helmikuu]]&_xlfn.SINGLE(_VUOSI)),Muut[Päivämäärän tarkistuksen pyyntö aloitettu],\"<=\"&E$4)","v":{"v":0,"d":"0.00 €"}},{"$f":"SUMIFS(Eritellyt_kulut[Sekin summa],Eritellyt_kulut[Kirjanpidon koodi],Kuukausikulujen_yhteenveto[[#This Row],[Kirjanpidon koodi]],Eritellyt_kulut[Laskun päivämäärä],\">=\"&F$3,Eritellyt_kulut[Laskun päivämäärä],\"<=\"&F$4)+SUMIFS(Muut[Sekin summa],Muut[Kirjanpidon koodi],Kuukausikulujen_yhteenveto[[#This Row],[Kirjanpidon koodi]],Muut[Päivämäärän tarkistuksen pyyntö aloitettu],\">=\"&DATEVALUE(\"1.\"&Kuukausikulujen_yhteenveto[[#Headers],[Maaliskuu]]&_xlfn.SINGLE(_VUOSI)),Muut[Päivämäärän tarkistuksen pyyntö aloitettu],\"<=\"&F$4)","v":{"v":0,"d":"0.00 €"}},{"$f":"SUMIFS(Eritellyt_kulut[Sekin summa],Eritellyt_kulut[Kirjanpidon koodi],Kuukausikulujen_yhteenveto[[#This Row],[Kirjanpidon koodi]],Eritellyt_kulut[Laskun päivämäärä],\">=\"&G$3,Eritellyt_kulut[Laskun päivämäärä],\"<=\"&G$4)+SUMIFS(Muut[Sekin summa],Muut[Kirjanpidon koodi],Kuukausikulujen_yhteenveto[[#This Row],[Kirjanpidon koodi]],Muut[Päivämäärän tarkistuksen pyyntö aloitettu],\">=\"&DATEVALUE(\"1.\"&Kuukausikulujen_yhteenveto[[#Headers],[Huhtikuu]]&_xlfn.SINGLE(_VUOSI)),Muut[Päivämäärän tarkistuksen pyyntö aloitettu],\"<=\"&G$4)","v":{"v":0,"d":"0.00 €"}},{"$f":"SUMIFS(Eritellyt_kulut[Sekin summa],Eritellyt_kulut[Kirjanpidon koodi],Kuukausikulujen_yhteenveto[[#This Row],[Kirjanpidon koodi]],Eritellyt_kulut[Laskun päivämäärä],\">=\"&H$3,Eritellyt_kulut[Laskun päivämäärä],\"<=\"&H$4)+SUMIFS(Muut[Sekin summa],Muut[Kirjanpidon koodi],Kuukausikulujen_yhteenveto[[#This Row],[Kirjanpidon koodi]],Muut[Päivämäärän tarkistuksen pyyntö aloitettu],\">=\"&DATEVALUE(\"1.\"&Kuukausikulujen_yhteenveto[[#Headers],[Toukokuu]]&_xlfn.SINGLE(_VUOSI)),Muut[Päivämäärän tarkistuksen pyyntö aloitettu],\"<=\"&H$4)","v":{"v":0,"d":"0.00 €"}},{"$f":"SUMIFS(Eritellyt_kulut[Sekin summa],Eritellyt_kulut[Kirjanpidon koodi],Kuukausikulujen_yhteenveto[[#This Row],[Kirjanpidon koodi]],Eritellyt_kulut[Laskun päivämäärä],\">=\"&I$3,Eritellyt_kulut[Laskun päivämäärä],\"<=\"&I$4)+SUMIFS(Muut[Sekin summa],Muut[Kirjanpidon koodi],Kuukausikulujen_yhteenveto[[#This Row],[Kirjanpidon koodi]],Muut[Päivämäärän tarkistuksen pyyntö aloitettu],\">=\"&DATEVALUE(\"1.\"&Kuukausikulujen_yhteenveto[[#Headers],[Kesäkuu]]&_xlfn.SINGLE(_VUOSI)),Muut[Päivämäärän tarkistuksen pyyntö aloitettu],\"<=\"&I$4)","v":{"v":0,"d":"0.00 €"}},{"$f":"SUMIFS(Eritellyt_kulut[Sekin summa],Eritellyt_kulut[Kirjanpidon koodi],Kuukausikulujen_yhteenveto[[#This Row],[Kirjanpidon koodi]],Eritellyt_kulut[Laskun päivämäärä],\">=\"&J$3,Eritellyt_kulut[Laskun päivämäärä],\"<=\"&J$4)+SUMIFS(Muut[Sekin summa],Muut[Kirjanpidon koodi],Kuukausikulujen_yhteenveto[[#This Row],[Kirjanpidon koodi]],Muut[Päivämäärän tarkistuksen pyyntö aloitettu],\">=\"&DATEVALUE(\"1.\"&Kuukausikulujen_yhteenveto[[#Headers],[Heinäkuu]]&_xlfn.SINGLE(_VUOSI)),Muut[Päivämäärän tarkistuksen pyyntö aloitettu],\"<=\"&J$4)","v":{"v":0,"d":"0.00 €"}},{"$f":"SUMIFS(Eritellyt_kulut[Sekin summa],Eritellyt_kulut[Kirjanpidon koodi],Kuukausikulujen_yhteenveto[[#This Row],[Kirjanpidon koodi]],Eritellyt_kulut[Laskun päivämäärä],\">=\"&K$3,Eritellyt_kulut[Laskun päivämäärä],\"<=\"&K$4)+SUMIFS(Muut[Sekin summa],Muut[Kirjanpidon koodi],Kuukausikulujen_yhteenveto[[#This Row],[Kirjanpidon koodi]],Muut[Päivämäärän tarkistuksen pyyntö aloitettu],\">=\"&DATEVALUE(\"1.\"&Kuukausikulujen_yhteenveto[[#Headers],[Elokuu]]&_xlfn.SINGLE(_VUOSI)),Muut[Päivämäärän tarkistuksen pyyntö aloitettu],\"<=\"&K$4)","v":{"v":0,"d":"0.00 €"}},{"$f":"SUMIFS(Eritellyt_kulut[Sekin summa],Eritellyt_kulut[Kirjanpidon koodi],Kuukausikulujen_yhteenveto[[#This Row],[Kirjanpidon koodi]],Eritellyt_kulut[Laskun päivämäärä],\">=\"&L$3,Eritellyt_kulut[Laskun päivämäärä],\"<=\"&L$4)+SUMIFS(Muut[Sekin summa],Muut[Kirjanpidon koodi],Kuukausikulujen_yhteenveto[[#This Row],[Kirjanpidon koodi]],Muut[Päivämäärän tarkistuksen pyyntö aloitettu],\">=\"&DATEVALUE(\"1.\"&Kuukausikulujen_yhteenveto[[#Headers],[Syyskuu]]&_xlfn.SINGLE(_VUOSI)),Muut[Päivämäärän tarkistuksen pyyntö aloitettu],\"<=\"&L$4)","v":{"v":0,"d":"0.00 €"}},{"$f":"SUMIFS(Eritellyt_kulut[Sekin summa],Eritellyt_kulut[Kirjanpidon koodi],Kuukausikulujen_yhteenveto[[#This Row],[Kirjanpidon koodi]],Eritellyt_kulut[Laskun päivämäärä],\">=\"&M$3,Eritellyt_kulut[Laskun päivämäärä],\"<=\"&M$4)+SUMIFS(Muut[Sekin summa],Muut[Kirjanpidon koodi],Kuukausikulujen_yhteenveto[[#This Row],[Kirjanpidon koodi]],Muut[Päivämäärän tarkistuksen pyyntö aloitettu],\">=\"&DATEVALUE(\"1.\"&Kuukausikulujen_yhteenveto[[#Headers],[Lokakuu]]&_xlfn.SINGLE(_VUOSI)),Muut[Päivämäärän tarkistuksen pyyntö aloitettu],\"<=\"&M$4)","v":{"v":0,"d":"0.00 €"}},{"$f":"SUMIFS(Eritellyt_kulut[Sekin summa],Eritellyt_kulut[Kirjanpidon koodi],Kuukausikulujen_yhteenveto[[#This Row],[Kirjanpidon koodi]],Eritellyt_kulut[Laskun päivämäärä],\">=\"&N$3,Eritellyt_kulut[Laskun päivämäärä],\"<=\"&N$4)+SUMIFS(Muut[Sekin summa],Muut[Kirjanpidon koodi],Kuukausikulujen_yhteenveto[[#This Row],[Kirjanpidon koodi]],Muut[Päivämäärän tarkistuksen pyyntö aloitettu],\">=\"&DATEVALUE(\"1.\"&Kuukausikulujen_yhteenveto[[#Headers],[Marraskuu]]&_xlfn.SINGLE(_VUOSI)),Muut[Päivämäärän tarkistuksen pyyntö aloitettu],\"<=\"&N$4)","v":{"v":0,"d":"0.00 €"}},{"$f":"SUMIFS(Eritellyt_kulut[Sekin summa],Eritellyt_kulut[Kirjanpidon koodi],Kuukausikulujen_yhteenveto[[#This Row],[Kirjanpidon koodi]],Eritellyt_kulut[Laskun päivämäärä],\">=\"&O$3,Eritellyt_kulut[Laskun päivämäärä],\"<=\"&O$4)+SUMIFS(Muut[Sekin summa],Muut[Kirjanpidon koodi],Kuukausikulujen_yhteenveto[[#This Row],[Kirjanpidon koodi]],Muut[Päivämäärän tarkistuksen pyyntö aloitettu],\">=\"&DATEVALUE(\"1.\"&Kuukausikulujen_yhteenveto[[#Headers],[Joulukuu]]&_xlfn.SINGLE(_VUOSI)),Muut[Päivämäärän tarkistuksen pyyntö aloitettu],\"<=\"&O$4)","v":{"v":0,"d":"0.00 €"}},{"$f":"SUM(Kuukausikulujen_yhteenveto[[#This Row],[Tammikuu]:[Joulukuu]])","v":{"v":0,"d":"0.00 €"}}]
[null,6000,"Asiakkaan kulut",{"$f":"SUMIFS(Eritellyt_kulut[Sekin summa],Eritellyt_kulut[Kirjanpidon koodi],Kuukausikulujen_yhteenveto[[#This Row],[Kirjanpidon koodi]],Eritellyt_kulut[Laskun päivämäärä],\">=\"&D$3,Eritellyt_kulut[Laskun päivämäärä],\"<=\"&D$4)+SUMIFS(Muut[Sekin summa],Muut[Kirjanpidon koodi],Kuukausikulujen_yhteenveto[[#This Row],[Kirjanpidon koodi]],Muut[Päivämäärän tarkistuksen pyyntö aloitettu],\">=\"&DATEVALUE(\"1.\"&Kuukausikulujen_yhteenveto[[#Headers],[Tammikuu]]&_xlfn.SINGLE(_VUOSI)),Muut[Päivämäärän tarkistuksen pyyntö aloitettu],\"<=\"&D$4)","v":{"v":0,"d":"0.00 €"}},{"$f":"SUMIFS(Eritellyt_kulut[Sekin summa],Eritellyt_kulut[Kirjanpidon koodi],Kuukausikulujen_yhteenveto[[#This Row],[Kirjanpidon koodi]],Eritellyt_kulut[Laskun päivämäärä],\">=\"&E$3,Eritellyt_kulut[Laskun päivämäärä],\"<=\"&E$4)+SUMIFS(Muut[Sekin summa],Muut[Kirjanpidon koodi],Kuukausikulujen_yhteenveto[[#This Row],[Kirjanpidon koodi]],Muut[Päivämäärän tarkistuksen pyyntö aloitettu],\">=\"&DATEVALUE(\"1.\"&Kuukausikulujen_yhteenveto[[#Headers],[Helmikuu]]&_xlfn.SINGLE(_VUOSI)),Muut[Päivämäärän tarkistuksen pyyntö aloitettu],\"<=\"&E$4)","v":{"v":0,"d":"0.00 €"}},{"$f":"SUMIFS(Eritellyt_kulut[Sekin summa],Eritellyt_kulut[Kirjanpidon koodi],Kuukausikulujen_yhteenveto[[#This Row],[Kirjanpidon koodi]],Eritellyt_kulut[Laskun päivämäärä],\">=\"&F$3,Eritellyt_kulut[Laskun päivämäärä],\"<=\"&F$4)+SUMIFS(Muut[Sekin summa],Muut[Kirjanpidon koodi],Kuukausikulujen_yhteenveto[[#This Row],[Kirjanpidon koodi]],Muut[Päivämäärän tarkistuksen pyyntö aloitettu],\">=\"&DATEVALUE(\"1.\"&Kuukausikulujen_yhteenveto[[#Headers],[Maaliskuu]]&_xlfn.SINGLE(_VUOSI)),Muut[Päivämäärän tarkistuksen pyyntö aloitettu],\"<=\"&F$4)","v":{"v":0,"d":"0.00 €"}},{"$f":"SUMIFS(Eritellyt_kulut[Sekin summa],Eritellyt_kulut[Kirjanpidon koodi],Kuukausikulujen_yhteenveto[[#This Row],[Kirjanpidon koodi]],Eritellyt_kulut[Laskun päivämäärä],\">=\"&G$3,Eritellyt_kulut[Laskun päivämäärä],\"<=\"&G$4)+SUMIFS(Muut[Sekin summa],Muut[Kirjanpidon koodi],Kuukausikulujen_yhteenveto[[#This Row],[Kirjanpidon koodi]],Muut[Päivämäärän tarkistuksen pyyntö aloitettu],\">=\"&DATEVALUE(\"1.\"&Kuukausikulujen_yhteenveto[[#Headers],[Huhtikuu]]&_xlfn.SINGLE(_VUOSI)),Muut[Päivämäärän tarkistuksen pyyntö aloitettu],\"<=\"&G$4)","v":{"v":0,"d":"0.00 €"}},{"$f":"SUMIFS(Eritellyt_kulut[Sekin summa],Eritellyt_kulut[Kirjanpidon koodi],Kuukausikulujen_yhteenveto[[#This Row],[Kirjanpidon koodi]],Eritellyt_kulut[Laskun päivämäärä],\">=\"&H$3,Eritellyt_kulut[Laskun päivämäärä],\"<=\"&H$4)+SUMIFS(Muut[Sekin summa],Muut[Kirjanpidon koodi],Kuukausikulujen_yhteenveto[[#This Row],[Kirjanpidon koodi]],Muut[Päivämäärän tarkistuksen pyyntö aloitettu],\">=\"&DATEVALUE(\"1.\"&Kuukausikulujen_yhteenveto[[#Headers],[Toukokuu]]&_xlfn.SINGLE(_VUOSI)),Muut[Päivämäärän tarkistuksen pyyntö aloitettu],\"<=\"&H$4)","v":{"v":0,"d":"0.00 €"}},{"$f":"SUMIFS(Eritellyt_kulut[Sekin summa],Eritellyt_kulut[Kirjanpidon koodi],Kuukausikulujen_yhteenveto[[#This Row],[Kirjanpidon koodi]],Eritellyt_kulut[Laskun päivämäärä],\">=\"&I$3,Eritellyt_kulut[Laskun päivämäärä],\"<=\"&I$4)+SUMIFS(Muut[Sekin summa],Muut[Kirjanpidon koodi],Kuukausikulujen_yhteenveto[[#This Row],[Kirjanpidon koodi]],Muut[Päivämäärän tarkistuksen pyyntö aloitettu],\">=\"&DATEVALUE(\"1.\"&Kuukausikulujen_yhteenveto[[#Headers],[Kesäkuu]]&_xlfn.SINGLE(_VUOSI)),Muut[Päivämäärän tarkistuksen pyyntö aloitettu],\"<=\"&I$4)","v":{"v":0,"d":"0.00 €"}},{"$f":"SUMIFS(Eritellyt_kulut[Sekin summa],Eritellyt_kulut[Kirjanpidon koodi],Kuukausikulujen_yhteenveto[[#This Row],[Kirjanpidon koodi]],Eritellyt_kulut[Laskun päivämäärä],\">=\"&J$3,Eritellyt_kulut[Laskun päivämäärä],\"<=\"&J$4)+SUMIFS(Muut[Sekin summa],Muut[Kirjanpidon koodi],Kuukausikulujen_yhteenveto[[#This Row],[Kirjanpidon koodi]],Muut[Päivämäärän tarkistuksen pyyntö aloitettu],\">=\"&DATEVALUE(\"1.\"&Kuukausikulujen_yhteenveto[[#Headers],[Heinäkuu]]&_xlfn.SINGLE(_VUOSI)),Muut[Päivämäärän tarkistuksen pyyntö aloitettu],\"<=\"&J$4)","v":{"v":0,"d":"0.00 €"}},{"$f":"SUMIFS(Eritellyt_kulut[Sekin summa],Eritellyt_kulut[Kirjanpidon koodi],Kuukausikulujen_yhteenveto[[#This Row],[Kirjanpidon koodi]],Eritellyt_kulut[Laskun päivämäärä],\">=\"&K$3,Eritellyt_kulut[Laskun päivämäärä],\"<=\"&K$4)+SUMIFS(Muut[Sekin summa],Muut[Kirjanpidon koodi],Kuukausikulujen_yhteenveto[[#This Row],[Kirjanpidon koodi]],Muut[Päivämäärän tarkistuksen pyyntö aloitettu],\">=\"&DATEVALUE(\"1.\"&Kuukausikulujen_yhteenveto[[#Headers],[Elokuu]]&_xlfn.SINGLE(_VUOSI)),Muut[Päivämäärän tarkistuksen pyyntö aloitettu],\"<=\"&K$4)","v":{"v":0,"d":"0.00 €"}},{"$f":"SUMIFS(Eritellyt_kulut[Sekin summa],Eritellyt_kulut[Kirjanpidon koodi],Kuukausikulujen_yhteenveto[[#This Row],[Kirjanpidon koodi]],Eritellyt_kulut[Laskun päivämäärä],\">=\"&L$3,Eritellyt_kulut[Laskun päivämäärä],\"<=\"&L$4)+SUMIFS(Muut[Sekin summa],Muut[Kirjanpidon koodi],Kuukausikulujen_yhteenveto[[#This Row],[Kirjanpidon koodi]],Muut[Päivämäärän tarkistuksen pyyntö aloitettu],\">=\"&DATEVALUE(\"1.\"&Kuukausikulujen_yhteenveto[[#Headers],[Syyskuu]]&_xlfn.SINGLE(_VUOSI)),Muut[Päivämäärän tarkistuksen pyyntö aloitettu],\"<=\"&L$4)","v":{"v":0,"d":"0.00 €"}},{"$f":"SUMIFS(Eritellyt_kulut[Sekin summa],Eritellyt_kulut[Kirjanpidon koodi],Kuukausikulujen_yhteenveto[[#This Row],[Kirjanpidon koodi]],Eritellyt_kulut[Laskun päivämäärä],\">=\"&M$3,Eritellyt_kulut[Laskun päivämäärä],\"<=\"&M$4)+SUMIFS(Muut[Sekin summa],Muut[Kirjanpidon koodi],Kuukausikulujen_yhteenveto[[#This Row],[Kirjanpidon koodi]],Muut[Päivämäärän tarkistuksen pyyntö aloitettu],\">=\"&DATEVALUE(\"1.\"&Kuukausikulujen_yhteenveto[[#Headers],[Lokakuu]]&_xlfn.SINGLE(_VUOSI)),Muut[Päivämäärän tarkistuksen pyyntö aloitettu],\"<=\"&M$4)","v":{"v":0,"d":"0.00 €"}},{"$f":"SUMIFS(Eritellyt_kulut[Sekin summa],Eritellyt_kulut[Kirjanpidon koodi],Kuukausikulujen_yhteenveto[[#This Row],[Kirjanpidon koodi]],Eritellyt_kulut[Laskun päivämäärä],\">=\"&N$3,Eritellyt_kulut[Laskun päivämäärä],\"<=\"&N$4)+SUMIFS(Muut[Sekin summa],Muut[Kirjanpidon koodi],Kuukausikulujen_yhteenveto[[#This Row],[Kirjanpidon koodi]],Muut[Päivämäärän tarkistuksen pyyntö aloitettu],\">=\"&DATEVALUE(\"1.\"&Kuukausikulujen_yhteenveto[[#Headers],[Marraskuu]]&_xlfn.SINGLE(_VUOSI)),Muut[Päivämäärän tarkistuksen pyyntö aloitettu],\"<=\"&N$4)","v":{"v":0,"d":"0.00 €"}},{"$f":"SUMIFS(Eritellyt_kulut[Sekin summa],Eritellyt_kulut[Kirjanpidon koodi],Kuukausikulujen_yhteenveto[[#This Row],[Kirjanpidon koodi]],Eritellyt_kulut[Laskun päivämäärä],\">=\"&O$3,Eritellyt_kulut[Laskun päivämäärä],\"<=\"&O$4)+SUMIFS(Muut[Sekin summa],Muut[Kirjanpidon koodi],Kuukausikulujen_yhteenveto[[#This Row],[Kirjanpidon koodi]],Muut[Päivämäärän tarkistuksen pyyntö aloitettu],\">=\"&DATEVALUE(\"1.\"&Kuukausikulujen_yhteenveto[[#Headers],[Joulukuu]]&_xlfn.SINGLE(_VUOSI)),Muut[Päivämäärän tarkistuksen pyyntö aloitettu],\"<=\"&O$4)","v":{"v":0,"d":"0.00 €"}},{"$f":"SUM(Kuukausikulujen_yhteenveto[[#This Row],[Tammikuu]:[Joulukuu]])","v":{"v":0,"d":"0.00 €"}}]
[null,7000,"Tietokoneet",{"$f":"SUMIFS(Eritellyt_kulut[Sekin summa],Eritellyt_kulut[Kirjanpidon koodi],Kuukausikulujen_yhteenveto[[#This Row],[Kirjanpidon koodi]],Eritellyt_kulut[Laskun päivämäärä],\">=\"&D$3,Eritellyt_kulut[Laskun päivämäärä],\"<=\"&D$4)+SUMIFS(Muut[Sekin summa],Muut[Kirjanpidon koodi],Kuukausikulujen_yhteenveto[[#This Row],[Kirjanpidon koodi]],Muut[Päivämäärän tarkistuksen pyyntö aloitettu],\">=\"&DATEVALUE(\"1.\"&Kuukausikulujen_yhteenveto[[#Headers],[Tammikuu]]&_xlfn.SINGLE(_VUOSI)),Muut[Päivämäärän tarkistuksen pyyntö aloitettu],\"<=\"&D$4)","v":{"v":0,"d":"0.00 €"}},{"$f":"SUMIFS(Eritellyt_kulut[Sekin summa],Eritellyt_kulut[Kirjanpidon koodi],Kuukausikulujen_yhteenveto[[#This Row],[Kirjanpidon koodi]],Eritellyt_kulut[Laskun päivämäärä],\">=\"&E$3,Eritellyt_kulut[Laskun päivämäärä],\"<=\"&E$4)+SUMIFS(Muut[Sekin summa],Muut[Kirjanpidon koodi],Kuukausikulujen_yhteenveto[[#This Row],[Kirjanpidon koodi]],Muut[Päivämäärän tarkistuksen pyyntö aloitettu],\">=\"&DATEVALUE(\"1.\"&Kuukausikulujen_yhteenveto[[#Headers],[Helmikuu]]&_xlfn.SINGLE(_VUOSI)),Muut[Päivämäärän tarkistuksen pyyntö aloitettu],\"<=\"&E$4)","v":{"v":0,"d":"0.00 €"}},{"$f":"SUMIFS(Eritellyt_kulut[Sekin summa],Eritellyt_kulut[Kirjanpidon koodi],Kuukausikulujen_yhteenveto[[#This Row],[Kirjanpidon koodi]],Eritellyt_kulut[Laskun päivämäärä],\">=\"&F$3,Eritellyt_kulut[Laskun päivämäärä],\"<=\"&F$4)+SUMIFS(Muut[Sekin summa],Muut[Kirjanpidon koodi],Kuukausikulujen_yhteenveto[[#This Row],[Kirjanpidon koodi]],Muut[Päivämäärän tarkistuksen pyyntö aloitettu],\">=\"&DATEVALUE(\"1.\"&Kuukausikulujen_yhteenveto[[#Headers],[Maaliskuu]]&_xlfn.SINGLE(_VUOSI)),Muut[Päivämäärän tarkistuksen pyyntö aloitettu],\"<=\"&F$4)","v":{"v":0,"d":"0.00 €"}},{"$f":"SUMIFS(Eritellyt_kulut[Sekin summa],Eritellyt_kulut[Kirjanpidon koodi],Kuukausikulujen_yhteenveto[[#This Row],[Kirjanpidon koodi]],Eritellyt_kulut[Laskun päivämäärä],\">=\"&G$3,Eritellyt_kulut[Laskun päivämäärä],\"<=\"&G$4)+SUMIFS(Muut[Sekin summa],Muut[Kirjanpidon koodi],Kuukausikulujen_yhteenveto[[#This Row],[Kirjanpidon koodi]],Muut[Päivämäärän tarkistuksen pyyntö aloitettu],\">=\"&DATEVALUE(\"1.\"&Kuukausikulujen_yhteenveto[[#Headers],[Huhtikuu]]&_xlfn.SINGLE(_VUOSI)),Muut[Päivämäärän tarkistuksen pyyntö aloitettu],\"<=\"&G$4)","v":{"v":0,"d":"0.00 €"}},{"$f":"SUMIFS(Eritellyt_kulut[Sekin summa],Eritellyt_kulut[Kirjanpidon koodi],Kuukausikulujen_yhteenveto[[#This Row],[Kirjanpidon koodi]],Eritellyt_kulut[Laskun päivämäärä],\">=\"&H$3,Eritellyt_kulut[Laskun päivämäärä],\"<=\"&H$4)+SUMIFS(Muut[Sekin summa],Muut[Kirjanpidon koodi],Kuukausikulujen_yhteenveto[[#This Row],[Kirjanpidon koodi]],Muut[Päivämäärän tarkistuksen pyyntö aloitettu],\">=\"&DATEVALUE(\"1.\"&Kuukausikulujen_yhteenveto[[#Headers],[Toukokuu]]&_xlfn.SINGLE(_VUOSI)),Muut[Päivämäärän tarkistuksen pyyntö aloitettu],\"<=\"&H$4)","v":{"v":0,"d":"0.00 €"}},{"$f":"SUMIFS(Eritellyt_kulut[Sekin summa],Eritellyt_kulut[Kirjanpidon koodi],Kuukausikulujen_yhteenveto[[#This Row],[Kirjanpidon koodi]],Eritellyt_kulut[Laskun päivämäärä],\">=\"&I$3,Eritellyt_kulut[Laskun päivämäärä],\"<=\"&I$4)+SUMIFS(Muut[Sekin summa],Muut[Kirjanpidon koodi],Kuukausikulujen_yhteenveto[[#This Row],[Kirjanpidon koodi]],Muut[Päivämäärän tarkistuksen pyyntö aloitettu],\">=\"&DATEVALUE(\"1.\"&Kuukausikulujen_yhteenveto[[#Headers],[Kesäkuu]]&_xlfn.SINGLE(_VUOSI)),Muut[Päivämäärän tarkistuksen pyyntö aloitettu],\"<=\"&I$4)","v":{"v":0,"d":"0.00 €"}},{"$f":"SUMIFS(Eritellyt_kulut[Sekin summa],Eritellyt_kulut[Kirjanpidon koodi],Kuukausikulujen_yhteenveto[[#This Row],[Kirjanpidon koodi]],Eritellyt_kulut[Laskun päivämäärä],\">=\"&J$3,Eritellyt_kulut[Laskun päivämäärä],\"<=\"&J$4)+SUMIFS(Muut[Sekin summa],Muut[Kirjanpidon koodi],Kuukausikulujen_yhteenveto[[#This Row],[Kirjanpidon koodi]],Muut[Päivämäärän tarkistuksen pyyntö aloitettu],\">=\"&DATEVALUE(\"1.\"&Kuukausikulujen_yhteenveto[[#Headers],[Heinäkuu]]&_xlfn.SINGLE(_VUOSI)),Muut[Päivämäärän tarkistuksen pyyntö aloitettu],\"<=\"&J$4)","v":{"v":0,"d":"0.00 €"}},{"$f":"SUMIFS(Eritellyt_kulut[Sekin summa],Eritellyt_kulut[Kirjanpidon koodi],Kuukausikulujen_yhteenveto[[#This Row],[Kirjanpidon koodi]],Eritellyt_kulut[Laskun päivämäärä],\">=\"&K$3,Eritellyt_kulut[Laskun päivämäärä],\"<=\"&K$4)+SUMIFS(Muut[Sekin summa],Muut[Kirjanpidon koodi],Kuukausikulujen_yhteenveto[[#This Row],[Kirjanpidon koodi]],Muut[Päivämäärän tarkistuksen pyyntö aloitettu],\">=\"&DATEVALUE(\"1.\"&Kuukausikulujen_yhteenveto[[#Headers],[Elokuu]]&_xlfn.SINGLE(_VUOSI)),Muut[Päivämäärän tarkistuksen pyyntö aloitettu],\"<=\"&K$4)","v":{"v":0,"d":"0.00 €"}},{"$f":"SUMIFS(Eritellyt_kulut[Sekin summa],Eritellyt_kulut[Kirjanpidon koodi],Kuukausikulujen_yhteenveto[[#This Row],[Kirjanpidon koodi]],Eritellyt_kulut[Laskun päivämäärä],\">=\"&L$3,Eritellyt_kulut[Laskun päivämäärä],\"<=\"&L$4)+SUMIFS(Muut[Sekin summa],Muut[Kirjanpidon koodi],Kuukausikulujen_yhteenveto[[#This Row],[Kirjanpidon koodi]],Muut[Päivämäärän tarkistuksen pyyntö aloitettu],\">=\"&DATEVALUE(\"1.\"&Kuukausikulujen_yhteenveto[[#Headers],[Syyskuu]]&_xlfn.SINGLE(_VUOSI)),Muut[Päivämäärän tarkistuksen pyyntö aloitettu],\"<=\"&L$4)","v":{"v":0,"d":"0.00 €"}},{"$f":"SUMIFS(Eritellyt_kulut[Sekin summa],Eritellyt_kulut[Kirjanpidon koodi],Kuukausikulujen_yhteenveto[[#This Row],[Kirjanpidon koodi]],Eritellyt_kulut[Laskun päivämäärä],\">=\"&M$3,Eritellyt_kulut[Laskun päivämäärä],\"<=\"&M$4)+SUMIFS(Muut[Sekin summa],Muut[Kirjanpidon koodi],Kuukausikulujen_yhteenveto[[#This Row],[Kirjanpidon koodi]],Muut[Päivämäärän tarkistuksen pyyntö aloitettu],\">=\"&DATEVALUE(\"1.\"&Kuukausikulujen_yhteenveto[[#Headers],[Lokakuu]]&_xlfn.SINGLE(_VUOSI)),Muut[Päivämäärän tarkistuksen pyyntö aloitettu],\"<=\"&M$4)","v":{"v":0,"d":"0.00 €"}},{"$f":"SUMIFS(Eritellyt_kulut[Sekin summa],Eritellyt_kulut[Kirjanpidon koodi],Kuukausikulujen_yhteenveto[[#This Row],[Kirjanpidon koodi]],Eritellyt_kulut[Laskun päivämäärä],\">=\"&N$3,Eritellyt_kulut[Laskun päivämäärä],\"<=\"&N$4)+SUMIFS(Muut[Sekin summa],Muut[Kirjanpidon koodi],Kuukausikulujen_yhteenveto[[#This Row],[Kirjanpidon koodi]],Muut[Päivämäärän tarkistuksen pyyntö aloitettu],\">=\"&DATEVALUE(\"1.\"&Kuukausikulujen_yhteenveto[[#Headers],[Marraskuu]]&_xlfn.SINGLE(_VUOSI)),Muut[Päivämäärän tarkistuksen pyyntö aloitettu],\"<=\"&N$4)","v":{"v":0,"d":"0.00 €"}},{"$f":"SUMIFS(Eritellyt_kulut[Sekin summa],Eritellyt_kulut[Kirjanpidon koodi],Kuukausikulujen_yhteenveto[[#This Row],[Kirjanpidon koodi]],Eritellyt_kulut[Laskun päivämäärä],\">=\"&O$3,Eritellyt_kulut[Laskun päivämäärä],\"<=\"&O$4)+SUMIFS(Muut[Sekin summa],Muut[Kirjanpidon koodi],Kuukausikulujen_yhteenveto[[#This Row],[Kirjanpidon koodi]],Muut[Päivämäärän tarkistuksen pyyntö aloitettu],\">=\"&DATEVALUE(\"1.\"&Kuukausikulujen_yhteenveto[[#Headers],[Joulukuu]]&_xlfn.SINGLE(_VUOSI)),Muut[Päivämäärän tarkistuksen pyyntö aloitettu],\"<=\"&O$4)","v":{"v":0,"d":"0.00 €"}},{"$f":"SUM(Kuukausikulujen_yhteenveto[[#This Row],[Tammikuu]:[Joulukuu]])","v":{"v":0,"d":"0.00 €"}}]
[null,8000,"Terveydenhoito",{"$f":"SUMIFS(Eritellyt_kulut[Sekin summa],Eritellyt_kulut[Kirjanpidon koodi],Kuukausikulujen_yhteenveto[[#This Row],[Kirjanpidon koodi]],Eritellyt_kulut[Laskun päivämäärä],\">=\"&D$3,Eritellyt_kulut[Laskun päivämäärä],\"<=\"&D$4)+SUMIFS(Muut[Sekin summa],Muut[Kirjanpidon koodi],Kuukausikulujen_yhteenveto[[#This Row],[Kirjanpidon koodi]],Muut[Päivämäärän tarkistuksen pyyntö aloitettu],\">=\"&DATEVALUE(\"1.\"&Kuukausikulujen_yhteenveto[[#Headers],[Tammikuu]]&_xlfn.SINGLE(_VUOSI)),Muut[Päivämäärän tarkistuksen pyyntö aloitettu],\"<=\"&D$4)","v":{"v":0,"d":"0.00 €"}},{"$f":"SUMIFS(Eritellyt_kulut[Sekin summa],Eritellyt_kulut[Kirjanpidon koodi],Kuukausikulujen_yhteenveto[[#This Row],[Kirjanpidon koodi]],Eritellyt_kulut[Laskun päivämäärä],\">=\"&E$3,Eritellyt_kulut[Laskun päivämäärä],\"<=\"&E$4)+SUMIFS(Muut[Sekin summa],Muut[Kirjanpidon koodi],Kuukausikulujen_yhteenveto[[#This Row],[Kirjanpidon koodi]],Muut[Päivämäärän tarkistuksen pyyntö aloitettu],\">=\"&DATEVALUE(\"1.\"&Kuukausikulujen_yhteenveto[[#Headers],[Helmikuu]]&_xlfn.SINGLE(_VUOSI)),Muut[Päivämäärän tarkistuksen pyyntö aloitettu],\"<=\"&E$4)","v":{"v":0,"d":"0.00 €"}},{"$f":"SUMIFS(Eritellyt_kulut[Sekin summa],Eritellyt_kulut[Kirjanpidon koodi],Kuukausikulujen_yhteenveto[[#This Row],[Kirjanpidon koodi]],Eritellyt_kulut[Laskun päivämäärä],\">=\"&F$3,Eritellyt_kulut[Laskun päivämäärä],\"<=\"&F$4)+SUMIFS(Muut[Sekin summa],Muut[Kirjanpidon koodi],Kuukausikulujen_yhteenveto[[#This Row],[Kirjanpidon koodi]],Muut[Päivämäärän tarkistuksen pyyntö aloitettu],\">=\"&DATEVALUE(\"1.\"&Kuukausikulujen_yhteenveto[[#Headers],[Maaliskuu]]&_xlfn.SINGLE(_VUOSI)),Muut[Päivämäärän tarkistuksen pyyntö aloitettu],\"<=\"&F$4)","v":{"v":0,"d":"0.00 €"}},{"$f":"SUMIFS(Eritellyt_kulut[Sekin summa],Eritellyt_kulut[Kirjanpidon koodi],Kuukausikulujen_yhteenveto[[#This Row],[Kirjanpidon koodi]],Eritellyt_kulut[Laskun päivämäärä],\">=\"&G$3,Eritellyt_kulut[Laskun päivämäärä],\"<=\"&G$4)+SUMIFS(Muut[Sekin summa],Muut[Kirjanpidon koodi],Kuukausikulujen_yhteenveto[[#This Row],[Kirjanpidon koodi]],Muut[Päivämäärän tarkistuksen pyyntö aloitettu],\">=\"&DATEVALUE(\"1.\"&Kuukausikulujen_yhteenveto[[#Headers],[Huhtikuu]]&_xlfn.SINGLE(_VUOSI)),Muut[Päivämäärän tarkistuksen pyyntö aloitettu],\"<=\"&G$4)","v":{"v":0,"d":"0.00 €"}},{"$f":"SUMIFS(Eritellyt_kulut[Sekin summa],Eritellyt_kulut[Kirjanpidon koodi],Kuukausikulujen_yhteenveto[[#This Row],[Kirjanpidon koodi]],Eritellyt_kulut[Laskun päivämäärä],\">=\"&H$3,Eritellyt_kulut[Laskun päivämäärä],\"<=\"&H$4)+SUMIFS(Muut[Sekin summa],Muut[Kirjanpidon koodi],Kuukausikulujen_yhteenveto[[#This Row],[Kirjanpidon koodi]],Muut[Päivämäärän tarkistuksen pyyntö aloitettu],\">=\"&DATEVALUE(\"1.\"&Kuukausikulujen_yhteenveto[[#Headers],[Toukokuu]]&_xlfn.SINGLE(_VUOSI)),Muut[Päivämäärän tarkistuksen pyyntö aloitettu],\"<=\"&H$4)","v":{"v":0,"d":"0.00 €"}},{"$f":"SUMIFS(Eritellyt_kulut[Sekin summa],Eritellyt_kulut[Kirjanpidon koodi],Kuukausikulujen_yhteenveto[[#This Row],[Kirjanpidon koodi]],Eritellyt_kulut[Laskun päivämäärä],\">=\"&I$3,Eritellyt_kulut[Laskun päivämäärä],\"<=\"&I$4)+SUMIFS(Muut[Sekin summa],Muut[Kirjanpidon koodi],Kuukausikulujen_yhteenveto[[#This Row],[Kirjanpidon koodi]],Muut[Päivämäärän tarkistuksen pyyntö aloitettu],\">=\"&DATEVALUE(\"1.\"&Kuukausikulujen_yhteenveto[[#Headers],[Kesäkuu]]&_xlfn.SINGLE(_VUOSI)),Muut[Päivämäärän tarkistuksen pyyntö aloitettu],\"<=\"&I$4)","v":{"v":0,"d":"0.00 €"}},{"$f":"SUMIFS(Eritellyt_kulut[Sekin summa],Eritellyt_kulut[Kirjanpidon koodi],Kuukausikulujen_yhteenveto[[#This Row],[Kirjanpidon koodi]],Eritellyt_kulut[Laskun päivämäärä],\">=\"&J$3,Eritellyt_kulut[Laskun päivämäärä],\"<=\"&J$4)+SUMIFS(Muut[Sekin summa],Muut[Kirjanpidon koodi],Kuukausikulujen_yhteenveto[[#This Row],[Kirjanpidon koodi]],Muut[Päivämäärän tarkistuksen pyyntö aloitettu],\">=\"&DATEVALUE(\"1.\"&Kuukausikulujen_yhteenveto[[#Headers],[Heinäkuu]]&_xlfn.SINGLE(_VUOSI)),Muut[Päivämäärän tarkistuksen pyyntö aloitettu],\"<=\"&J$4)","v":{"v":0,"d":"0.00 €"}},{"$f":"SUMIFS(Eritellyt_kulut[Sekin summa],Eritellyt_kulut[Kirjanpidon koodi],Kuukausikulujen_yhteenveto[[#This Row],[Kirjanpidon koodi]],Eritellyt_kulut[Laskun päivämäärä],\">=\"&K$3,Eritellyt_kulut[Laskun päivämäärä],\"<=\"&K$4)+SUMIFS(Muut[Sekin summa],Muut[Kirjanpidon koodi],Kuukausikulujen_yhteenveto[[#This Row],[Kirjanpidon koodi]],Muut[Päivämäärän tarkistuksen pyyntö aloitettu],\">=\"&DATEVALUE(\"1.\"&Kuukausikulujen_yhteenveto[[#Headers],[Elokuu]]&_xlfn.SINGLE(_VUOSI)),Muut[Päivämäärän tarkistuksen pyyntö aloitettu],\"<=\"&K$4)","v":{"v":0,"d":"0.00 €"}},{"$f":"SUMIFS(Eritellyt_kulut[Sekin summa],Eritellyt_kulut[Kirjanpidon koodi],Kuukausikulujen_yhteenveto[[#This Row],[Kirjanpidon koodi]],Eritellyt_kulut[Laskun päivämäärä],\">=\"&L$3,Eritellyt_kulut[Laskun päivämäärä],\"<=\"&L$4)+SUMIFS(Muut[Sekin summa],Muut[Kirjanpidon koodi],Kuukausikulujen_yhteenveto[[#This Row],[Kirjanpidon koodi]],Muut[Päivämäärän tarkistuksen pyyntö aloitettu],\">=\"&DATEVALUE(\"1.\"&Kuukausikulujen_yhteenveto[[#Headers],[Syyskuu]]&_xlfn.SINGLE(_VUOSI)),Muut[Päivämäärän tarkistuksen pyyntö aloitettu],\"<=\"&L$4)","v":{"v":0,"d":"0.00 €"}},{"$f":"SUMIFS(Eritellyt_kulut[Sekin summa],Eritellyt_kulut[Kirjanpidon koodi],Kuukausikulujen_yhteenveto[[#This Row],[Kirjanpidon koodi]],Eritellyt_kulut[Laskun päivämäärä],\">=\"&M$3,Eritellyt_kulut[Laskun päivämäärä],\"<=\"&M$4)+SUMIFS(Muut[Sekin summa],Muut[Kirjanpidon koodi],Kuukausikulujen_yhteenveto[[#This Row],[Kirjanpidon koodi]],Muut[Päivämäärän tarkistuksen pyyntö aloitettu],\">=\"&DATEVALUE(\"1.\"&Kuukausikulujen_yhteenveto[[#Headers],[Lokakuu]]&_xlfn.SINGLE(_VUOSI)),Muut[Päivämäärän tarkistuksen pyyntö aloitettu],\"<=\"&M$4)","v":{"v":0,"d":"0.00 €"}},{"$f":"SUMIFS(Eritellyt_kulut[Sekin summa],Eritellyt_kulut[Kirjanpidon koodi],Kuukausikulujen_yhteenveto[[#This Row],[Kirjanpidon koodi]],Eritellyt_kulut[Laskun päivämäärä],\">=\"&N$3,Eritellyt_kulut[Laskun päivämäärä],\"<=\"&N$4)+SUMIFS(Muut[Sekin summa],Muut[Kirjanpidon koodi],Kuukausikulujen_yhteenveto[[#This Row],[Kirjanpidon koodi]],Muut[Päivämäärän tarkistuksen pyyntö aloitettu],\">=\"&DATEVALUE(\"1.\"&Kuukausikulujen_yhteenveto[[#Headers],[Marraskuu]]&_xlfn.SINGLE(_VUOSI)),Muut[Päivämäärän tarkistuksen pyyntö aloitettu],\"<=\"&N$4)","v":{"v":0,"d":"0.00 €"}},{"$f":"SUMIFS(Eritellyt_kulut[Sekin summa],Eritellyt_kulut[Kirjanpidon koodi],Kuukausikulujen_yhteenveto[[#This Row],[Kirjanpidon koodi]],Eritellyt_kulut[Laskun päivämäärä],\">=\"&O$3,Eritellyt_kulut[Laskun päivämäärä],\"<=\"&O$4)+SUMIFS(Muut[Sekin summa],Muut[Kirjanpidon koodi],Kuukausikulujen_yhteenveto[[#This Row],[Kirjanpidon koodi]],Muut[Päivämäärän tarkistuksen pyyntö aloitettu],\">=\"&DATEVALUE(\"1.\"&Kuukausikulujen_yhteenveto[[#Headers],[Joulukuu]]&_xlfn.SINGLE(_VUOSI)),Muut[Päivämäärän tarkistuksen pyyntö aloitettu],\"<=\"&O$4)","v":{"v":0,"d":"0.00 €"}},{"$f":"SUM(Kuukausikulujen_yhteenveto[[#This Row],[Tammikuu]:[Joulukuu]])","v":{"v":0,"d":"0.00 €"}}]
[null,9000,"Rakennuskustannukset",{"$f":"SUMIFS(Eritellyt_kulut[Sekin summa],Eritellyt_kulut[Kirjanpidon koodi],Kuukausikulujen_yhteenveto[[#This Row],[Kirjanpidon koodi]],Eritellyt_kulut[Laskun päivämäärä],\">=\"&D$3,Eritellyt_kulut[Laskun päivämäärä],\"<=\"&D$4)+SUMIFS(Muut[Sekin summa],Muut[Kirjanpidon koodi],Kuukausikulujen_yhteenveto[[#This Row],[Kirjanpidon koodi]],Muut[Päivämäärän tarkistuksen pyyntö aloitettu],\">=\"&DATEVALUE(\"1.\"&Kuukausikulujen_yhteenveto[[#Headers],[Tammikuu]]&_xlfn.SINGLE(_VUOSI)),Muut[Päivämäärän tarkistuksen pyyntö aloitettu],\"<=\"&D$4)","v":{"v":0,"d":"0.00 €"}},{"$f":"SUMIFS(Eritellyt_kulut[Sekin summa],Eritellyt_kulut[Kirjanpidon koodi],Kuukausikulujen_yhteenveto[[#This Row],[Kirjanpidon koodi]],Eritellyt_kulut[Laskun päivämäärä],\">=\"&E$3,Eritellyt_kulut[Laskun päivämäärä],\"<=\"&E$4)+SUMIFS(Muut[Sekin summa],Muut[Kirjanpidon koodi],Kuukausikulujen_yhteenveto[[#This Row],[Kirjanpidon koodi]],Muut[Päivämäärän tarkistuksen pyyntö aloitettu],\">=\"&DATEVALUE(\"1.\"&Kuukausikulujen_yhteenveto[[#Headers],[Helmikuu]]&_xlfn.SINGLE(_VUOSI)),Muut[Päivämäärän tarkistuksen pyyntö aloitettu],\"<=\"&E$4)","v":{"v":0,"d":"0.00 €"}},{"$f":"SUMIFS(Eritellyt_kulut[Sekin summa],Eritellyt_kulut[Kirjanpidon koodi],Kuukausikulujen_yhteenveto[[#This Row],[Kirjanpidon koodi]],Eritellyt_kulut[Laskun päivämäärä],\">=\"&F$3,Eritellyt_kulut[Laskun päivämäärä],\"<=\"&F$4)+SUMIFS(Muut[Sekin summa],Muut[Kirjanpidon koodi],Kuukausikulujen_yhteenveto[[#This Row],[Kirjanpidon koodi]],Muut[Päivämäärän tarkistuksen pyyntö aloitettu],\">=\"&DATEVALUE(\"1.\"&Kuukausikulujen_yhteenveto[[#Headers],[Maaliskuu]]&_xlfn.SINGLE(_VUOSI)),Muut[Päivämäärän tarkistuksen pyyntö aloitettu],\"<=\"&F$4)","v":{"v":0,"d":"0.00 €"}},{"$f":"SUMIFS(Eritellyt_kulut[Sekin summa],Eritellyt_kulut[Kirjanpidon koodi],Kuukausikulujen_yhteenveto[[#This Row],[Kirjanpidon koodi]],Eritellyt_kulut[Laskun päivämäärä],\">=\"&G$3,Eritellyt_kulut[Laskun päivämäärä],\"<=\"&G$4)+SUMIFS(Muut[Sekin summa],Muut[Kirjanpidon koodi],Kuukausikulujen_yhteenveto[[#This Row],[Kirjanpidon koodi]],Muut[Päivämäärän tarkistuksen pyyntö aloitettu],\">=\"&DATEVALUE(\"1.\"&Kuukausikulujen_yhteenveto[[#Headers],[Huhtikuu]]&_xlfn.SINGLE(_VUOSI)),Muut[Päivämäärän tarkistuksen pyyntö aloitettu],\"<=\"&G$4)","v":{"v":0,"d":"0.00 €"}},{"$f":"SUMIFS(Eritellyt_kulut[Sekin summa],Eritellyt_kulut[Kirjanpidon koodi],Kuukausikulujen_yhteenveto[[#This Row],[Kirjanpidon koodi]],Eritellyt_kulut[Laskun päivämäärä],\">=\"&H$3,Eritellyt_kulut[Laskun päivämäärä],\"<=\"&H$4)+SUMIFS(Muut[Sekin summa],Muut[Kirjanpidon koodi],Kuukausikulujen_yhteenveto[[#This Row],[Kirjanpidon koodi]],Muut[Päivämäärän tarkistuksen pyyntö aloitettu],\">=\"&DATEVALUE(\"1.\"&Kuukausikulujen_yhteenveto[[#Headers],[Toukokuu]]&_xlfn.SINGLE(_VUOSI)),Muut[Päivämäärän tarkistuksen pyyntö aloitettu],\"<=\"&H$4)","v":{"v":0,"d":"0.00 €"}},{"$f":"SUMIFS(Eritellyt_kulut[Sekin summa],Eritellyt_kulut[Kirjanpidon koodi],Kuukausikulujen_yhteenveto[[#This Row],[Kirjanpidon koodi]],Eritellyt_kulut[Laskun päivämäärä],\">=\"&I$3,Eritellyt_kulut[Laskun päivämäärä],\"<=\"&I$4)+SUMIFS(Muut[Sekin summa],Muut[Kirjanpidon koodi],Kuukausikulujen_yhteenveto[[#This Row],[Kirjanpidon koodi]],Muut[Päivämäärän tarkistuksen pyyntö aloitettu],\">=\"&DATEVALUE(\"1.\"&Kuukausikulujen_yhteenveto[[#Headers],[Kesäkuu]]&_xlfn.SINGLE(_VUOSI)),Muut[Päivämäärän tarkistuksen pyyntö aloitettu],\"<=\"&I$4)","v":{"v":0,"d":"0.00 €"}},{"$f":"SUMIFS(Eritellyt_kulut[Sekin summa],Eritellyt_kulut[Kirjanpidon koodi],Kuukausikulujen_yhteenveto[[#This Row],[Kirjanpidon koodi]],Eritellyt_kulut[Laskun päivämäärä],\">=\"&J$3,Eritellyt_kulut[Laskun päivämäärä],\"<=\"&J$4)+SUMIFS(Muut[Sekin summa],Muut[Kirjanpidon koodi],Kuukausikulujen_yhteenveto[[#This Row],[Kirjanpidon koodi]],Muut[Päivämäärän tarkistuksen pyyntö aloitettu],\">=\"&DATEVALUE(\"1.\"&Kuukausikulujen_yhteenveto[[#Headers],[Heinäkuu]]&_xlfn.SINGLE(_VUOSI)),Muut[Päivämäärän tarkistuksen pyyntö aloitettu],\"<=\"&J$4)","v":{"v":0,"d":"0.00 €"}},{"$f":"SUMIFS(Eritellyt_kulut[Sekin summa],Eritellyt_kulut[Kirjanpidon koodi],Kuukausikulujen_yhteenveto[[#This Row],[Kirjanpidon koodi]],Eritellyt_kulut[Laskun päivämäärä],\">=\"&K$3,Eritellyt_kulut[Laskun päivämäärä],\"<=\"&K$4)+SUMIFS(Muut[Sekin summa],Muut[Kirjanpidon koodi],Kuukausikulujen_yhteenveto[[#This Row],[Kirjanpidon koodi]],Muut[Päivämäärän tarkistuksen pyyntö aloitettu],\">=\"&DATEVALUE(\"1.\"&Kuukausikulujen_yhteenveto[[#Headers],[Elokuu]]&_xlfn.SINGLE(_VUOSI)),Muut[Päivämäärän tarkistuksen pyyntö aloitettu],\"<=\"&K$4)","v":{"v":0,"d":"0.00 €"}},{"$f":"SUMIFS(Eritellyt_kulut[Sekin summa],Eritellyt_kulut[Kirjanpidon koodi],Kuukausikulujen_yhteenveto[[#This Row],[Kirjanpidon koodi]],Eritellyt_kulut[Laskun päivämäärä],\">=\"&L$3,Eritellyt_kulut[Laskun päivämäärä],\"<=\"&L$4)+SUMIFS(Muut[Sekin summa],Muut[Kirjanpidon koodi],Kuukausikulujen_yhteenveto[[#This Row],[Kirjanpidon koodi]],Muut[Päivämäärän tarkistuksen pyyntö aloitettu],\">=\"&DATEVALUE(\"1.\"&Kuukausikulujen_yhteenveto[[#Headers],[Syyskuu]]&_xlfn.SINGLE(_VUOSI)),Muut[Päivämäärän tarkistuksen pyyntö aloitettu],\"<=\"&L$4)","v":{"v":0,"d":"0.00 €"}},{"$f":"SUMIFS(Eritellyt_kulut[Sekin summa],Eritellyt_kulut[Kirjanpidon koodi],Kuukausikulujen_yhteenveto[[#This Row],[Kirjanpidon koodi]],Eritellyt_kulut[Laskun päivämäärä],\">=\"&M$3,Eritellyt_kulut[Laskun päivämäärä],\"<=\"&M$4)+SUMIFS(Muut[Sekin summa],Muut[Kirjanpidon koodi],Kuukausikulujen_yhteenveto[[#This Row],[Kirjanpidon koodi]],Muut[Päivämäärän tarkistuksen pyyntö aloitettu],\">=\"&DATEVALUE(\"1.\"&Kuukausikulujen_yhteenveto[[#Headers],[Lokakuu]]&_xlfn.SINGLE(_VUOSI)),Muut[Päivämäärän tarkistuksen pyyntö aloitettu],\"<=\"&M$4)","v":{"v":0,"d":"0.00 €"}},{"$f":"SUMIFS(Eritellyt_kulut[Sekin summa],Eritellyt_kulut[Kirjanpidon koodi],Kuukausikulujen_yhteenveto[[#This Row],[Kirjanpidon koodi]],Eritellyt_kulut[Laskun päivämäärä],\">=\"&N$3,Eritellyt_kulut[Laskun päivämäärä],\"<=\"&N$4)+SUMIFS(Muut[Sekin summa],Muut[Kirjanpidon koodi],Kuukausikulujen_yhteenveto[[#This Row],[Kirjanpidon koodi]],Muut[Päivämäärän tarkistuksen pyyntö aloitettu],\">=\"&DATEVALUE(\"1.\"&Kuukausikulujen_yhteenveto[[#Headers],[Marraskuu]]&_xlfn.SINGLE(_VUOSI)),Muut[Päivämäärän tarkistuksen pyyntö aloitettu],\"<=\"&N$4)","v":{"v":0,"d":"0.00 €"}},{"$f":"SUMIFS(Eritellyt_kulut[Sekin summa],Eritellyt_kulut[Kirjanpidon koodi],Kuukausikulujen_yhteenveto[[#This Row],[Kirjanpidon koodi]],Eritellyt_kulut[Laskun päivämäärä],\">=\"&O$3,Eritellyt_kulut[Laskun päivämäärä],\"<=\"&O$4)+SUMIFS(Muut[Sekin summa],Muut[Kirjanpidon koodi],Kuukausikulujen_yhteenveto[[#This Row],[Kirjanpidon koodi]],Muut[Päivämäärän tarkistuksen pyyntö aloitettu],\">=\"&DATEVALUE(\"1.\"&Kuukausikulujen_yhteenveto[[#Headers],[Joulukuu]]&_xlfn.SINGLE(_VUOSI)),Muut[Päivämäärän tarkistuksen pyyntö aloitettu],\"<=\"&O$4)","v":{"v":0,"d":"0.00 €"}},{"$f":"SUM(Kuukausikulujen_yhteenveto[[#This Row],[Tammikuu]:[Joulukuu]])","v":{"v":0,"d":"0.00 €"}}]
[null,10000,"Markkinointi",{"$f":"SUMIFS(Eritellyt_kulut[Sekin summa],Eritellyt_kulut[Kirjanpidon koodi],Kuukausikulujen_yhteenveto[[#This Row],[Kirjanpidon koodi]],Eritellyt_kulut[Laskun päivämäärä],\">=\"&D$3,Eritellyt_kulut[Laskun päivämäärä],\"<=\"&D$4)+SUMIFS(Muut[Sekin summa],Muut[Kirjanpidon koodi],Kuukausikulujen_yhteenveto[[#This Row],[Kirjanpidon koodi]],Muut[Päivämäärän tarkistuksen pyyntö aloitettu],\">=\"&DATEVALUE(\"1.\"&Kuukausikulujen_yhteenveto[[#Headers],[Tammikuu]]&_xlfn.SINGLE(_VUOSI)),Muut[Päivämäärän tarkistuksen pyyntö aloitettu],\"<=\"&D$4)","v":{"v":0,"d":"0.00 €"}},{"$f":"SUMIFS(Eritellyt_kulut[Sekin summa],Eritellyt_kulut[Kirjanpidon koodi],Kuukausikulujen_yhteenveto[[#This Row],[Kirjanpidon koodi]],Eritellyt_kulut[Laskun päivämäärä],\">=\"&E$3,Eritellyt_kulut[Laskun päivämäärä],\"<=\"&E$4)+SUMIFS(Muut[Sekin summa],Muut[Kirjanpidon koodi],Kuukausikulujen_yhteenveto[[#This Row],[Kirjanpidon koodi]],Muut[Päivämäärän tarkistuksen pyyntö aloitettu],\">=\"&DATEVALUE(\"1.\"&Kuukausikulujen_yhteenveto[[#Headers],[Helmikuu]]&_xlfn.SINGLE(_VUOSI)),Muut[Päivämäärän tarkistuksen pyyntö aloitettu],\"<=\"&E$4)","v":{"v":0,"d":"0.00 €"}},{"$f":"SUMIFS(Eritellyt_kulut[Sekin summa],Eritellyt_kulut[Kirjanpidon koodi],Kuukausikulujen_yhteenveto[[#This Row],[Kirjanpidon koodi]],Eritellyt_kulut[Laskun päivämäärä],\">=\"&F$3,Eritellyt_kulut[Laskun päivämäärä],\"<=\"&F$4)+SUMIFS(Muut[Sekin summa],Muut[Kirjanpidon koodi],Kuukausikulujen_yhteenveto[[#This Row],[Kirjanpidon koodi]],Muut[Päivämäärän tarkistuksen pyyntö aloitettu],\">=\"&DATEVALUE(\"1.\"&Kuukausikulujen_yhteenveto[[#Headers],[Maaliskuu]]&_xlfn.SINGLE(_VUOSI)),Muut[Päivämäärän tarkistuksen pyyntö aloitettu],\"<=\"&F$4)","v":{"v":0,"d":"0.00 €"}},{"$f":"SUMIFS(Eritellyt_kulut[Sekin summa],Eritellyt_kulut[Kirjanpidon koodi],Kuukausikulujen_yhteenveto[[#This Row],[Kirjanpidon koodi]],Eritellyt_kulut[Laskun päivämäärä],\">=\"&G$3,Eritellyt_kulut[Laskun päivämäärä],\"<=\"&G$4)+SUMIFS(Muut[Sekin summa],Muut[Kirjanpidon koodi],Kuukausikulujen_yhteenveto[[#This Row],[Kirjanpidon koodi]],Muut[Päivämäärän tarkistuksen pyyntö aloitettu],\">=\"&DATEVALUE(\"1.\"&Kuukausikulujen_yhteenveto[[#Headers],[Huhtikuu]]&_xlfn.SINGLE(_VUOSI)),Muut[Päivämäärän tarkistuksen pyyntö aloitettu],\"<=\"&G$4)","v":{"v":0,"d":"0.00 €"}},{"$f":"SUMIFS(Eritellyt_kulut[Sekin summa],Eritellyt_kulut[Kirjanpidon koodi],Kuukausikulujen_yhteenveto[[#This Row],[Kirjanpidon koodi]],Eritellyt_kulut[Laskun päivämäärä],\">=\"&H$3,Eritellyt_kulut[Laskun päivämäärä],\"<=\"&H$4)+SUMIFS(Muut[Sekin summa],Muut[Kirjanpidon koodi],Kuukausikulujen_yhteenveto[[#This Row],[Kirjanpidon koodi]],Muut[Päivämäärän tarkistuksen pyyntö aloitettu],\">=\"&DATEVALUE(\"1.\"&Kuukausikulujen_yhteenveto[[#Headers],[Toukokuu]]&_xlfn.SINGLE(_VUOSI)),Muut[Päivämäärän tarkistuksen pyyntö aloitettu],\"<=\"&H$4)","v":{"v":0,"d":"0.00 €"}},{"$f":"SUMIFS(Eritellyt_kulut[Sekin summa],Eritellyt_kulut[Kirjanpidon koodi],Kuukausikulujen_yhteenveto[[#This Row],[Kirjanpidon koodi]],Eritellyt_kulut[Laskun päivämäärä],\">=\"&I$3,Eritellyt_kulut[Laskun päivämäärä],\"<=\"&I$4)+SUMIFS(Muut[Sekin summa],Muut[Kirjanpidon koodi],Kuukausikulujen_yhteenveto[[#This Row],[Kirjanpidon koodi]],Muut[Päivämäärän tarkistuksen pyyntö aloitettu],\">=\"&DATEVALUE(\"1.\"&Kuukausikulujen_yhteenveto[[#Headers],[Kesäkuu]]&_xlfn.SINGLE(_VUOSI)),Muut[Päivämäärän tarkistuksen pyyntö aloitettu],\"<=\"&I$4)","v":{"v":0,"d":"0.00 €"}},{"$f":"SUMIFS(Eritellyt_kulut[Sekin summa],Eritellyt_kulut[Kirjanpidon koodi],Kuukausikulujen_yhteenveto[[#This Row],[Kirjanpidon koodi]],Eritellyt_kulut[Laskun päivämäärä],\">=\"&J$3,Eritellyt_kulut[Laskun päivämäärä],\"<=\"&J$4)+SUMIFS(Muut[Sekin summa],Muut[Kirjanpidon koodi],Kuukausikulujen_yhteenveto[[#This Row],[Kirjanpidon koodi]],Muut[Päivämäärän tarkistuksen pyyntö aloitettu],\">=\"&DATEVALUE(\"1.\"&Kuukausikulujen_yhteenveto[[#Headers],[Heinäkuu]]&_xlfn.SINGLE(_VUOSI)),Muut[Päivämäärän tarkistuksen pyyntö aloitettu],\"<=\"&J$4)","v":{"v":0,"d":"0.00 €"}},{"$f":"SUMIFS(Eritellyt_kulut[Sekin summa],Eritellyt_kulut[Kirjanpidon koodi],Kuukausikulujen_yhteenveto[[#This Row],[Kirjanpidon koodi]],Eritellyt_kulut[Laskun päivämäärä],\">=\"&K$3,Eritellyt_kulut[Laskun päivämäärä],\"<=\"&K$4)+SUMIFS(Muut[Sekin summa],Muut[Kirjanpidon koodi],Kuukausikulujen_yhteenveto[[#This Row],[Kirjanpidon koodi]],Muut[Päivämäärän tarkistuksen pyyntö aloitettu],\">=\"&DATEVALUE(\"1.\"&Kuukausikulujen_yhteenveto[[#Headers],[Elokuu]]&_xlfn.SINGLE(_VUOSI)),Muut[Päivämäärän tarkistuksen pyyntö aloitettu],\"<=\"&K$4)","v":{"v":0,"d":"0.00 €"}},{"$f":"SUMIFS(Eritellyt_kulut[Sekin summa],Eritellyt_kulut[Kirjanpidon koodi],Kuukausikulujen_yhteenveto[[#This Row],[Kirjanpidon koodi]],Eritellyt_kulut[Laskun päivämäärä],\">=\"&L$3,Eritellyt_kulut[Laskun päivämäärä],\"<=\"&L$4)+SUMIFS(Muut[Sekin summa],Muut[Kirjanpidon koodi],Kuukausikulujen_yhteenveto[[#This Row],[Kirjanpidon koodi]],Muut[Päivämäärän tarkistuksen pyyntö aloitettu],\">=\"&DATEVALUE(\"1.\"&Kuukausikulujen_yhteenveto[[#Headers],[Syyskuu]]&_xlfn.SINGLE(_VUOSI)),Muut[Päivämäärän tarkistuksen pyyntö aloitettu],\"<=\"&L$4)","v":{"v":0,"d":"0.00 €"}},{"$f":"SUMIFS(Eritellyt_kulut[Sekin summa],Eritellyt_kulut[Kirjanpidon koodi],Kuukausikulujen_yhteenveto[[#This Row],[Kirjanpidon koodi]],Eritellyt_kulut[Laskun päivämäärä],\">=\"&M$3,Eritellyt_kulut[Laskun päivämäärä],\"<=\"&M$4)+SUMIFS(Muut[Sekin summa],Muut[Kirjanpidon koodi],Kuukausikulujen_yhteenveto[[#This Row],[Kirjanpidon koodi]],Muut[Päivämäärän tarkistuksen pyyntö aloitettu],\">=\"&DATEVALUE(\"1.\"&Kuukausikulujen_yhteenveto[[#Headers],[Lokakuu]]&_xlfn.SINGLE(_VUOSI)),Muut[Päivämäärän tarkistuksen pyyntö aloitettu],\"<=\"&M$4)","v":{"v":0,"d":"0.00 €"}},{"$f":"SUMIFS(Eritellyt_kulut[Sekin summa],Eritellyt_kulut[Kirjanpidon koodi],Kuukausikulujen_yhteenveto[[#This Row],[Kirjanpidon koodi]],Eritellyt_kulut[Laskun päivämäärä],\">=\"&N$3,Eritellyt_kulut[Laskun päivämäärä],\"<=\"&N$4)+SUMIFS(Muut[Sekin summa],Muut[Kirjanpidon koodi],Kuukausikulujen_yhteenveto[[#This Row],[Kirjanpidon koodi]],Muut[Päivämäärän tarkistuksen pyyntö aloitettu],\">=\"&DATEVALUE(\"1.\"&Kuukausikulujen_yhteenveto[[#Headers],[Marraskuu]]&_xlfn.SINGLE(_VUOSI)),Muut[Päivämäärän tarkistuksen pyyntö aloitettu],\"<=\"&N$4)","v":{"v":0,"d":"0.00 €"}},{"$f":"SUMIFS(Eritellyt_kulut[Sekin summa],Eritellyt_kulut[Kirjanpidon koodi],Kuukausikulujen_yhteenveto[[#This Row],[Kirjanpidon koodi]],Eritellyt_kulut[Laskun päivämäärä],\">=\"&O$3,Eritellyt_kulut[Laskun päivämäärä],\"<=\"&O$4)+SUMIFS(Muut[Sekin summa],Muut[Kirjanpidon koodi],Kuukausikulujen_yhteenveto[[#This Row],[Kirjanpidon koodi]],Muut[Päivämäärän tarkistuksen pyyntö aloitettu],\">=\"&DATEVALUE(\"1.\"&Kuukausikulujen_yhteenveto[[#Headers],[Joulukuu]]&_xlfn.SINGLE(_VUOSI)),Muut[Päivämäärän tarkistuksen pyyntö aloitettu],\"<=\"&O$4)","v":{"v":0,"d":"0.00 €"}},{"$f":"SUM(Kuukausikulujen_yhteenveto[[#This Row],[Tammikuu]:[Joulukuu]])","v":{"v":0,"d":"0.00 €"}}]
[null,11000,"Lahjoitukset",{"$f":"SUMIFS(Eritellyt_kulut[Sekin summa],Eritellyt_kulut[Kirjanpidon koodi],Kuukausikulujen_yhteenveto[[#This Row],[Kirjanpidon koodi]],Eritellyt_kulut[Laskun päivämäärä],\">=\"&D$3,Eritellyt_kulut[Laskun päivämäärä],\"<=\"&D$4)+SUMIFS(Muut[Sekin summa],Muut[Kirjanpidon koodi],Kuukausikulujen_yhteenveto[[#This Row],[Kirjanpidon koodi]],Muut[Päivämäärän tarkistuksen pyyntö aloitettu],\">=\"&DATEVALUE(\"1.\"&Kuukausikulujen_yhteenveto[[#Headers],[Tammikuu]]&_xlfn.SINGLE(_VUOSI)),Muut[Päivämäärän tarkistuksen pyyntö aloitettu],\"<=\"&D$4)","v":{"v":0,"d":"0.00 €"}},{"$f":"SUMIFS(Eritellyt_kulut[Sekin summa],Eritellyt_kulut[Kirjanpidon koodi],Kuukausikulujen_yhteenveto[[#This Row],[Kirjanpidon koodi]],Eritellyt_kulut[Laskun päivämäärä],\">=\"&E$3,Eritellyt_kulut[Laskun päivämäärä],\"<=\"&E$4)+SUMIFS(Muut[Sekin summa],Muut[Kirjanpidon koodi],Kuukausikulujen_yhteenveto[[#This Row],[Kirjanpidon koodi]],Muut[Päivämäärän tarkistuksen pyyntö aloitettu],\">=\"&DATEVALUE(\"1.\"&Kuukausikulujen_yhteenveto[[#Headers],[Helmikuu]]&_xlfn.SINGLE(_VUOSI)),Muut[Päivämäärän tarkistuksen pyyntö aloitettu],\"<=\"&E$4)","v":{"v":0,"d":"0.00 €"}},{"$f":"SUMIFS(Eritellyt_kulut[Sekin summa],Eritellyt_kulut[Kirjanpidon koodi],Kuukausikulujen_yhteenveto[[#This Row],[Kirjanpidon koodi]],Eritellyt_kulut[Laskun päivämäärä],\">=\"&F$3,Eritellyt_kulut[Laskun päivämäärä],\"<=\"&F$4)+SUMIFS(Muut[Sekin summa],Muut[Kirjanpidon koodi],Kuukausikulujen_yhteenveto[[#This Row],[Kirjanpidon koodi]],Muut[Päivämäärän tarkistuksen pyyntö aloitettu],\">=\"&DATEVALUE(\"1.\"&Kuukausikulujen_yhteenveto[[#Headers],[Maaliskuu]]&_xlfn.SINGLE(_VUOSI)),Muut[Päivämäärän tarkistuksen pyyntö aloitettu],\"<=\"&F$4)","v":{"v":0,"d":"0.00 €"}},{"$f":"SUMIFS(Eritellyt_kulut[Sekin summa],Eritellyt_kulut[Kirjanpidon koodi],Kuukausikulujen_yhteenveto[[#This Row],[Kirjanpidon koodi]],Eritellyt_kulut[Laskun päivämäärä],\">=\"&G$3,Eritellyt_kulut[Laskun päivämäärä],\"<=\"&G$4)+SUMIFS(Muut[Sekin summa],Muut[Kirjanpidon koodi],Kuukausikulujen_yhteenveto[[#This Row],[Kirjanpidon koodi]],Muut[Päivämäärän tarkistuksen pyyntö aloitettu],\">=\"&DATEVALUE(\"1.\"&Kuukausikulujen_yhteenveto[[#Headers],[Huhtikuu]]&_xlfn.SINGLE(_VUOSI)),Muut[Päivämäärän tarkistuksen pyyntö aloitettu],\"<=\"&G$4)","v":{"v":0,"d":"0.00 €"}},{"$f":"SUMIFS(Eritellyt_kulut[Sekin summa],Eritellyt_kulut[Kirjanpidon koodi],Kuukausikulujen_yhteenveto[[#This Row],[Kirjanpidon koodi]],Eritellyt_kulut[Laskun päivämäärä],\">=\"&H$3,Eritellyt_kulut[Laskun päivämäärä],\"<=\"&H$4)+SUMIFS(Muut[Sekin summa],Muut[Kirjanpidon koodi],Kuukausikulujen_yhteenveto[[#This Row],[Kirjanpidon koodi]],Muut[Päivämäärän tarkistuksen pyyntö aloitettu],\">=\"&DATEVALUE(\"1.\"&Kuukausikulujen_yhteenveto[[#Headers],[Toukokuu]]&_xlfn.SINGLE(_VUOSI)),Muut[Päivämäärän tarkistuksen pyyntö aloitettu],\"<=\"&H$4)","v":{"v":0,"d":"0.00 €"}},{"$f":"SUMIFS(Eritellyt_kulut[Sekin summa],Eritellyt_kulut[Kirjanpidon koodi],Kuukausikulujen_yhteenveto[[#This Row],[Kirjanpidon koodi]],Eritellyt_kulut[Laskun päivämäärä],\">=\"&I$3,Eritellyt_kulut[Laskun päivämäärä],\"<=\"&I$4)+SUMIFS(Muut[Sekin summa],Muut[Kirjanpidon koodi],Kuukausikulujen_yhteenveto[[#This Row],[Kirjanpidon koodi]],Muut[Päivämäärän tarkistuksen pyyntö aloitettu],\">=\"&DATEVALUE(\"1.\"&Kuukausikulujen_yhteenveto[[#Headers],[Kesäkuu]]&_xlfn.SINGLE(_VUOSI)),Muut[Päivämäärän tarkistuksen pyyntö aloitettu],\"<=\"&I$4)","v":{"v":0,"d":"0.00 €"}},{"$f":"SUMIFS(Eritellyt_kulut[Sekin summa],Eritellyt_kulut[Kirjanpidon koodi],Kuukausikulujen_yhteenveto[[#This Row],[Kirjanpidon koodi]],Eritellyt_kulut[Laskun päivämäärä],\">=\"&J$3,Eritellyt_kulut[Laskun päivämäärä],\"<=\"&J$4)+SUMIFS(Muut[Sekin summa],Muut[Kirjanpidon koodi],Kuukausikulujen_yhteenveto[[#This Row],[Kirjanpidon koodi]],Muut[Päivämäärän tarkistuksen pyyntö aloitettu],\">=\"&DATEVALUE(\"1.\"&Kuukausikulujen_yhteenveto[[#Headers],[Heinäkuu]]&_xlfn.SINGLE(_VUOSI)),Muut[Päivämäärän tarkistuksen pyyntö aloitettu],\"<=\"&J$4)","v":{"v":0,"d":"0.00 €"}},{"$f":"SUMIFS(Eritellyt_kulut[Sekin summa],Eritellyt_kulut[Kirjanpidon koodi],Kuukausikulujen_yhteenveto[[#This Row],[Kirjanpidon koodi]],Eritellyt_kulut[Laskun päivämäärä],\">=\"&K$3,Eritellyt_kulut[Laskun päivämäärä],\"<=\"&K$4)+SUMIFS(Muut[Sekin summa],Muut[Kirjanpidon koodi],Kuukausikulujen_yhteenveto[[#This Row],[Kirjanpidon koodi]],Muut[Päivämäärän tarkistuksen pyyntö aloitettu],\">=\"&DATEVALUE(\"1.\"&Kuukausikulujen_yhteenveto[[#Headers],[Elokuu]]&_xlfn.SINGLE(_VUOSI)),Muut[Päivämäärän tarkistuksen pyyntö aloitettu],\"<=\"&K$4)","v":{"v":0,"d":"0.00 €"}},{"$f":"SUMIFS(Eritellyt_kulut[Sekin summa],Eritellyt_kulut[Kirjanpidon koodi],Kuukausikulujen_yhteenveto[[#This Row],[Kirjanpidon koodi]],Eritellyt_kulut[Laskun päivämäärä],\">=\"&L$3,Eritellyt_kulut[Laskun päivämäärä],\"<=\"&L$4)+SUMIFS(Muut[Sekin summa],Muut[Kirjanpidon koodi],Kuukausikulujen_yhteenveto[[#This Row],[Kirjanpidon koodi]],Muut[Päivämäärän tarkistuksen pyyntö aloitettu],\">=\"&DATEVALUE(\"1.\"&Kuukausikulujen_yhteenveto[[#Headers],[Syyskuu]]&_xlfn.SINGLE(_VUOSI)),Muut[Päivämäärän tarkistuksen pyyntö aloitettu],\"<=\"&L$4)","v":{"v":0,"d":"0.00 €"}},{"$f":"SUMIFS(Eritellyt_kulut[Sekin summa],Eritellyt_kulut[Kirjanpidon koodi],Kuukausikulujen_yhteenveto[[#This Row],[Kirjanpidon koodi]],Eritellyt_kulut[Laskun päivämäärä],\">=\"&M$3,Eritellyt_kulut[Laskun päivämäärä],\"<=\"&M$4)+SUMIFS(Muut[Sekin summa],Muut[Kirjanpidon koodi],Kuukausikulujen_yhteenveto[[#This Row],[Kirjanpidon koodi]],Muut[Päivämäärän tarkistuksen pyyntö aloitettu],\">=\"&DATEVALUE(\"1.\"&Kuukausikulujen_yhteenveto[[#Headers],[Lokakuu]]&_xlfn.SINGLE(_VUOSI)),Muut[Päivämäärän tarkistuksen pyyntö aloitettu],\"<=\"&M$4)","v":{"v":0,"d":"0.00 €"}},{"$f":"SUMIFS(Eritellyt_kulut[Sekin summa],Eritellyt_kulut[Kirjanpidon koodi],Kuukausikulujen_yhteenveto[[#This Row],[Kirjanpidon koodi]],Eritellyt_kulut[Laskun päivämäärä],\">=\"&N$3,Eritellyt_kulut[Laskun päivämäärä],\"<=\"&N$4)+SUMIFS(Muut[Sekin summa],Muut[Kirjanpidon koodi],Kuukausikulujen_yhteenveto[[#This Row],[Kirjanpidon koodi]],Muut[Päivämäärän tarkistuksen pyyntö aloitettu],\">=\"&DATEVALUE(\"1.\"&Kuukausikulujen_yhteenveto[[#Headers],[Marraskuu]]&_xlfn.SINGLE(_VUOSI)),Muut[Päivämäärän tarkistuksen pyyntö aloitettu],\"<=\"&N$4)","v":{"v":0,"d":"0.00 €"}},{"$f":"SUMIFS(Eritellyt_kulut[Sekin summa],Eritellyt_kulut[Kirjanpidon koodi],Kuukausikulujen_yhteenveto[[#This Row],[Kirjanpidon koodi]],Eritellyt_kulut[Laskun päivämäärä],\">=\"&O$3,Eritellyt_kulut[Laskun päivämäärä],\"<=\"&O$4)+SUMIFS(Muut[Sekin summa],Muut[Kirjanpidon koodi],Kuukausikulujen_yhteenveto[[#This Row],[Kirjanpidon koodi]],Muut[Päivämäärän tarkistuksen pyyntö aloitettu],\">=\"&DATEVALUE(\"1.\"&Kuukausikulujen_yhteenveto[[#Headers],[Joulukuu]]&_xlfn.SINGLE(_VUOSI)),Muut[Päivämäärän tarkistuksen pyyntö aloitettu],\"<=\"&O$4)","v":{"v":0,"d":"0.00 €"}},{"$f":"SUM(Kuukausikulujen_yhteenveto[[#This Row],[Tammikuu]:[Joulukuu]])","v":{"v":0,"d":"0.00 €"}}]
[null,12000,"Sponsoroinnit",{"$f":"SUMIFS(Eritellyt_kulut[Sekin summa],Eritellyt_kulut[Kirjanpidon koodi],Kuukausikulujen_yhteenveto[[#This Row],[Kirjanpidon koodi]],Eritellyt_kulut[Laskun päivämäärä],\">=\"&D$3,Eritellyt_kulut[Laskun päivämäärä],\"<=\"&D$4)+SUMIFS(Muut[Sekin summa],Muut[Kirjanpidon koodi],Kuukausikulujen_yhteenveto[[#This Row],[Kirjanpidon koodi]],Muut[Päivämäärän tarkistuksen pyyntö aloitettu],\">=\"&DATEVALUE(\"1.\"&Kuukausikulujen_yhteenveto[[#Headers],[Tammikuu]]&_xlfn.SINGLE(_VUOSI)),Muut[Päivämäärän tarkistuksen pyyntö aloitettu],\"<=\"&D$4)","v":{"v":0,"d":"0.00 €"}},{"$f":"SUMIFS(Eritellyt_kulut[Sekin summa],Eritellyt_kulut[Kirjanpidon koodi],Kuukausikulujen_yhteenveto[[#This Row],[Kirjanpidon koodi]],Eritellyt_kulut[Laskun päivämäärä],\">=\"&E$3,Eritellyt_kulut[Laskun päivämäärä],\"<=\"&E$4)+SUMIFS(Muut[Sekin summa],Muut[Kirjanpidon koodi],Kuukausikulujen_yhteenveto[[#This Row],[Kirjanpidon koodi]],Muut[Päivämäärän tarkistuksen pyyntö aloitettu],\">=\"&DATEVALUE(\"1.\"&Kuukausikulujen_yhteenveto[[#Headers],[Helmikuu]]&_xlfn.SINGLE(_VUOSI)),Muut[Päivämäärän tarkistuksen pyyntö aloitettu],\"<=\"&E$4)","v":{"v":0,"d":"0.00 €"}},{"$f":"SUMIFS(Eritellyt_kulut[Sekin summa],Eritellyt_kulut[Kirjanpidon koodi],Kuukausikulujen_yhteenveto[[#This Row],[Kirjanpidon koodi]],Eritellyt_kulut[Laskun päivämäärä],\">=\"&F$3,Eritellyt_kulut[Laskun päivämäärä],\"<=\"&F$4)+SUMIFS(Muut[Sekin summa],Muut[Kirjanpidon koodi],Kuukausikulujen_yhteenveto[[#This Row],[Kirjanpidon koodi]],Muut[Päivämäärän tarkistuksen pyyntö aloitettu],\">=\"&DATEVALUE(\"1.\"&Kuukausikulujen_yhteenveto[[#Headers],[Maaliskuu]]&_xlfn.SINGLE(_VUOSI)),Muut[Päivämäärän tarkistuksen pyyntö aloitettu],\"<=\"&F$4)","v":{"v":0,"d":"0.00 €"}},{"$f":"SUMIFS(Eritellyt_kulut[Sekin summa],Eritellyt_kulut[Kirjanpidon koodi],Kuukausikulujen_yhteenveto[[#This Row],[Kirjanpidon koodi]],Eritellyt_kulut[Laskun päivämäärä],\">=\"&G$3,Eritellyt_kulut[Laskun päivämäärä],\"<=\"&G$4)+SUMIFS(Muut[Sekin summa],Muut[Kirjanpidon koodi],Kuukausikulujen_yhteenveto[[#This Row],[Kirjanpidon koodi]],Muut[Päivämäärän tarkistuksen pyyntö aloitettu],\">=\"&DATEVALUE(\"1.\"&Kuukausikulujen_yhteenveto[[#Headers],[Huhtikuu]]&_xlfn.SINGLE(_VUOSI)),Muut[Päivämäärän tarkistuksen pyyntö aloitettu],\"<=\"&G$4)","v":{"v":0,"d":"0.00 €"}},{"$f":"SUMIFS(Eritellyt_kulut[Sekin summa],Eritellyt_kulut[Kirjanpidon koodi],Kuukausikulujen_yhteenveto[[#This Row],[Kirjanpidon koodi]],Eritellyt_kulut[Laskun päivämäärä],\">=\"&H$3,Eritellyt_kulut[Laskun päivämäärä],\"<=\"&H$4)+SUMIFS(Muut[Sekin summa],Muut[Kirjanpidon koodi],Kuukausikulujen_yhteenveto[[#This Row],[Kirjanpidon koodi]],Muut[Päivämäärän tarkistuksen pyyntö aloitettu],\">=\"&DATEVALUE(\"1.\"&Kuukausikulujen_yhteenveto[[#Headers],[Toukokuu]]&_xlfn.SINGLE(_VUOSI)),Muut[Päivämäärän tarkistuksen pyyntö aloitettu],\"<=\"&H$4)","v":{"v":0,"d":"0.00 €"}},{"$f":"SUMIFS(Eritellyt_kulut[Sekin summa],Eritellyt_kulut[Kirjanpidon koodi],Kuukausikulujen_yhteenveto[[#This Row],[Kirjanpidon koodi]],Eritellyt_kulut[Laskun päivämäärä],\">=\"&I$3,Eritellyt_kulut[Laskun päivämäärä],\"<=\"&I$4)+SUMIFS(Muut[Sekin summa],Muut[Kirjanpidon koodi],Kuukausikulujen_yhteenveto[[#This Row],[Kirjanpidon koodi]],Muut[Päivämäärän tarkistuksen pyyntö aloitettu],\">=\"&DATEVALUE(\"1.\"&Kuukausikulujen_yhteenveto[[#Headers],[Kesäkuu]]&_xlfn.SINGLE(_VUOSI)),Muut[Päivämäärän tarkistuksen pyyntö aloitettu],\"<=\"&I$4)","v":{"v":0,"d":"0.00 €"}},{"$f":"SUMIFS(Eritellyt_kulut[Sekin summa],Eritellyt_kulut[Kirjanpidon koodi],Kuukausikulujen_yhteenveto[[#This Row],[Kirjanpidon koodi]],Eritellyt_kulut[Laskun päivämäärä],\">=\"&J$3,Eritellyt_kulut[Laskun päivämäärä],\"<=\"&J$4)+SUMIFS(Muut[Sekin summa],Muut[Kirjanpidon koodi],Kuukausikulujen_yhteenveto[[#This Row],[Kirjanpidon koodi]],Muut[Päivämäärän tarkistuksen pyyntö aloitettu],\">=\"&DATEVALUE(\"1.\"&Kuukausikulujen_yhteenveto[[#Headers],[Heinäkuu]]&_xlfn.SINGLE(_VUOSI)),Muut[Päivämäärän tarkistuksen pyyntö aloitettu],\"<=\"&J$4)","v":{"v":0,"d":"0.00 €"}},{"$f":"SUMIFS(Eritellyt_kulut[Sekin summa],Eritellyt_kulut[Kirjanpidon koodi],Kuukausikulujen_yhteenveto[[#This Row],[Kirjanpidon koodi]],Eritellyt_kulut[Laskun päivämäärä],\">=\"&K$3,Eritellyt_kulut[Laskun päivämäärä],\"<=\"&K$4)+SUMIFS(Muut[Sekin summa],Muut[Kirjanpidon koodi],Kuukausikulujen_yhteenveto[[#This Row],[Kirjanpidon koodi]],Muut[Päivämäärän tarkistuksen pyyntö aloitettu],\">=\"&DATEVALUE(\"1.\"&Kuukausikulujen_yhteenveto[[#Headers],[Elokuu]]&_xlfn.SINGLE(_VUOSI)),Muut[Päivämäärän tarkistuksen pyyntö aloitettu],\"<=\"&K$4)","v":{"v":0,"d":"0.00 €"}},{"$f":"SUMIFS(Eritellyt_kulut[Sekin summa],Eritellyt_kulut[Kirjanpidon koodi],Kuukausikulujen_yhteenveto[[#This Row],[Kirjanpidon koodi]],Eritellyt_kulut[Laskun päivämäärä],\">=\"&L$3,Eritellyt_kulut[Laskun päivämäärä],\"<=\"&L$4)+SUMIFS(Muut[Sekin summa],Muut[Kirjanpidon koodi],Kuukausikulujen_yhteenveto[[#This Row],[Kirjanpidon koodi]],Muut[Päivämäärän tarkistuksen pyyntö aloitettu],\">=\"&DATEVALUE(\"1.\"&Kuukausikulujen_yhteenveto[[#Headers],[Syyskuu]]&_xlfn.SINGLE(_VUOSI)),Muut[Päivämäärän tarkistuksen pyyntö aloitettu],\"<=\"&L$4)","v":{"v":0,"d":"0.00 €"}},{"$f":"SUMIFS(Eritellyt_kulut[Sekin summa],Eritellyt_kulut[Kirjanpidon koodi],Kuukausikulujen_yhteenveto[[#This Row],[Kirjanpidon koodi]],Eritellyt_kulut[Laskun päivämäärä],\">=\"&M$3,Eritellyt_kulut[Laskun päivämäärä],\"<=\"&M$4)+SUMIFS(Muut[Sekin summa],Muut[Kirjanpidon koodi],Kuukausikulujen_yhteenveto[[#This Row],[Kirjanpidon koodi]],Muut[Päivämäärän tarkistuksen pyyntö aloitettu],\">=\"&DATEVALUE(\"1.\"&Kuukausikulujen_yhteenveto[[#Headers],[Lokakuu]]&_xlfn.SINGLE(_VUOSI)),Muut[Päivämäärän tarkistuksen pyyntö aloitettu],\"<=\"&M$4)","v":{"v":0,"d":"0.00 €"}},{"$f":"SUMIFS(Eritellyt_kulut[Sekin summa],Eritellyt_kulut[Kirjanpidon koodi],Kuukausikulujen_yhteenveto[[#This Row],[Kirjanpidon koodi]],Eritellyt_kulut[Laskun päivämäärä],\">=\"&N$3,Eritellyt_kulut[Laskun päivämäärä],\"<=\"&N$4)+SUMIFS(Muut[Sekin summa],Muut[Kirjanpidon koodi],Kuukausikulujen_yhteenveto[[#This Row],[Kirjanpidon koodi]],Muut[Päivämäärän tarkistuksen pyyntö aloitettu],\">=\"&DATEVALUE(\"1.\"&Kuukausikulujen_yhteenveto[[#Headers],[Marraskuu]]&_xlfn.SINGLE(_VUOSI)),Muut[Päivämäärän tarkistuksen pyyntö aloitettu],\"<=\"&N$4)","v":{"v":0,"d":"0.00 €"}},{"$f":"SUMIFS(Eritellyt_kulut[Sekin summa],Eritellyt_kulut[Kirjanpidon koodi],Kuukausikulujen_yhteenveto[[#This Row],[Kirjanpidon koodi]],Eritellyt_kulut[Laskun päivämäärä],\">=\"&O$3,Eritellyt_kulut[Laskun päivämäärä],\"<=\"&O$4)+SUMIFS(Muut[Sekin summa],Muut[Kirjanpidon koodi],Kuukausikulujen_yhteenveto[[#This Row],[Kirjanpidon koodi]],Muut[Päivämäärän tarkistuksen pyyntö aloitettu],\">=\"&DATEVALUE(\"1.\"&Kuukausikulujen_yhteenveto[[#Headers],[Joulukuu]]&_xlfn.SINGLE(_VUOSI)),Muut[Päivämäärän tarkistuksen pyyntö aloitettu],\"<=\"&O$4)","v":{"v":0,"d":"0.00 €"}},{"$f":"SUM(Kuukausikulujen_yhteenveto[[#This Row],[Tammikuu]:[Joulukuu]])","v":{"v":0,"d":"0.00 €"}}]
[null,"Summa",null,{"$f":"SUBTOTAL(109,Kuukausikulujen_yhteenveto[Tammikuu])","v":{"v":0,"d":"0.00 €"}},{"$f":"SUBTOTAL(109,Kuukausikulujen_yhteenveto[Helmikuu])","v":{"v":0,"d":"0.00 €"}},{"$f":"SUBTOTAL(109,Kuukausikulujen_yhteenveto[Maaliskuu])","v":{"v":0,"d":"0.00 €"}},{"$f":"SUBTOTAL(109,Kuukausikulujen_yhteenveto[Huhtikuu])","v":{"v":0,"d":"0.00 €"}},{"$f":"SUBTOTAL(109,Kuukausikulujen_yhteenveto[Toukokuu])","v":{"v":0,"d":"0.00 €"}},{"$f":"SUBTOTAL(109,Kuukausikulujen_yhteenveto[Kesäkuu])","v":{"v":0,"d":"0.00 €"}},{"$f":"SUBTOTAL(109,Kuukausikulujen_yhteenveto[Heinäkuu])","v":{"v":0,"d":"0.00 €"}},{"$f":"SUBTOTAL(109,Kuukausikulujen_yhteenveto[Elokuu])","v":{"v":0,"d":"0.00 €"}},{"$f":"SUBTOTAL(109,Kuukausikulujen_yhteenveto[Syyskuu])","v":{"v":0,"d":"0.00 €"}},{"$f":"SUBTOTAL(109,Kuukausikulujen_yhteenveto[Lokakuu])","v":{"v":0,"d":"0.00 €"}},{"$f":"SUBTOTAL(109,Kuukausikulujen_yhteenveto[Marraskuu])","v":{"v":0,"d":"0.00 €"}},{"$f":"SUBTOTAL(109,Kuukausikulujen_yhteenveto[Joulukuu])","v":{"v":0,"d":"0.00 €"}},{"$f":"SUBTOTAL(109,Kuukausikulujen_yhteenveto[Summa])","v":{"v":0,"d":"0.00 €"}}]

{"sheet":"ERITELLYT KULUT","index":2,"n_rows":6,"n_cols":10,"rows_kept":6,"merged":[[1,1,1,9],[2,1,2,5],[2,6,2,9]]}
[null,"KUUKAUSIKULUJEN YHTEENVETO","LAHJOITUKSET & SPONSOROINNIT"]
[null,"ERITELLYT KULUT"]
[null,"Tässä solussa on osittaja tietojen suodattamiseen pyynnön tekijä mukaan. Osittaja tietojen suodattamiseen maksun saajan mukaan on solussa oikealla.",{"$nulls":4},"Tässä solussa on osittaja tietojen suodattamiseen maksun saaja mukaan."]
[null,"Kirjanpidon koodi","Laskun päivämäärä","Laskun numero","Pyynnön tekijä","Sekin summa","Maksun saaja","Sekin käyttö","Jakelun menetelmä","Käsittelypäivämäärä"]
[null,1000,"Päivämäärä",100,"Andy Teal",{"v":750.75,"d":"750.75 €"},"Consolidated Messenger ","Postisovellus","Sähköposti","Päivämäärä"]
[null,7000,"Päivämäärä",101,"Robert Walters",{"v":2500,"d":"2,500.00 €"},"A. Datum Corporation ","2 pöytätietokonetta","Luotto","Päivämäärä"]

{"sheet":"LAHJOITUKSET & SPONSOROINNIT","index":3,"n_rows":6,"n_cols":12,"rows_kept":6,"merged":[[1,1,1,11],[2,1,2,5],[2,6,2,11]]}
[null,"ERITELLYT KULUT"]
[null,"LAHJOITUKSET & SPONSOROINNIT"]
[null,"Tässä solussa on osittaja tietojen suodattamiseen pyynnön tekijä mukaan. Osittaja tietojen suodattamiseen maksun saaja mukaan on solussa oikealla.",{"$nulls":4},"Tässä solussa on osittaja tietojen suodattamiseen maksun saaja mukaan."]
[null,"Kirjanpidon koodi","Päivämäärän tarkistuksen pyyntö aloitettu","Pyynnön tekijä","Sekin summa","Edellisen vuoden osuus","Maksun saaja","Käyttötarkoitus","Allekirjoittanut","Luokka","Jakelun menetelmä","Käsittelypäivämäärä"]
[null,12000,"Päivämäärä","Susan W. Eaton",{"v":1000,"d":"1,000.00 €"},{"v":12,"d":"12.00 €"},"School of Fine Art ","Apurahat","Kim Ralls","Taide","Lasku","Päivämäärä"]
[null,11000,"Päivämäärä","Susan W. Eaton",{"v":2500,"d":"2,500.00 €"},{"v":0,"d":"0.00 €"},"WingTip Toys ","Yhteisö","Kathie Flood","Yhteisö","Lasku","Päivämäärä"]